Workbook

Sheet Смета
B2: Шифр расценки | C2: Наименование сооружения | D2: Раздел | E2: Ед. изм. | F2: Объем работ | G2: Стоимость ед., руб. | H2: Коэф-т пересчета | I2: НДС, коэф | J2: Интегральный коэффициент | K2: Всего, млн руб. | L2: Готовность, год | M2: Срок реализации, лет
B3: 1. Теплоснабжение | D3: 1
A4: 1 | B4: 1 | C4: Работа №1 | D4: 1.1 | E4: км | F4: 5 | G4: 100000000 | H4: 1.1 | I4: 1.2 | J4: =H4*I4 -> 1.32 | K4: =IFERROR(F4*G4*J4,0)/1000000 -> 660 | L4: 2025 | M4: 2
A5: 2 | B5: 3 | C5: Работа №2 | D5: 1.2 | E5: км | F5: 10 | G5: 50000000 | H5: 1.2 | I5: 1 | J5: =H5*I5 -> 1.2 | K5: =IFERROR(F5*G5*J5,0)/1000000 -> 600 | L5: 2026 | M5: 3
A6: 3 | B6: 6 | C6: Работа №3 | D6: 1.3 | E6: МВт | F6: 100 | G6: 1000000 | H6: 1 | I6: 1.2 | J6: 1.2 | K6: 120 | L6: 2030 | M6: 5
A7: 4 | B7: 9 | C7: Новая работа | D7: 1.2 | E7: км | F7: 100 | G7: 2500000 | H7: 1.5 | I7: 1 | J7: 1.5 | K7: 375 | L7: 2029 | M7: 2
A8: 5 | J8: 0 | K8: 0
A9: 6 | J9: 0 | K9: 0
A10: 7 | J10: 0 | K10: 0
A11: 8 | J11: 0 | K11: 0
A12: 9 | J12: 0 | K12: 0
A13: 10 | J13: 0 | K13: 0
A14: 11 | J14: 0 | K14: 0
A15: 12 | J15: 0 | K15: 0
A16: 13 | J16: 0 | K16: 0
A17: 14 | J17: 0 | K17: 0
A18: 15 | J18: 0 | K18: 0
A19: 16 | J19: 0 | K19: 0
A20: 17 | J20: 0 | K20: 0
A21: 18 | J21: 0 | K21: 0
A22: 19 | J22: 0 | K22: 0
A23: 20 | J23: 0 | K23: 0
A24: 21 | J24: 0 | K24: 0
A25: 22 | J25: 0 | K25: 0
A26: 23 | J26: 0 | K26: 0
A27: 24 | J27: 0 | K27: 0
A28: 25 | J28: 0 | K28: 0
A29: 26 | J29: 0 | K29: 0
A30: 27 | J30: 0 | K30: 0
A31: 28 | J31: 0 | K31: 0
A32: 29 | J32: 0 | K32: 0
A33: 30 | J33: 0 | K33: 0
A34: 31 | J34: 0 | K34: 0
A35: 32 | J35: 0 | K35: 0
A36: 33 | J36: 0 | K36: 0
A37: 34 | J37: 0 | K37: 0
A38: 35 | J38: 0 | K38: 0
A39: 36 | J39: 0 | K39: 0
A40: 37 | J40: 0 | K40: 0
A41: 38 | J41: 0 | K41: 0
A42: 39 | J42: 0 | K42: 0
A43: 40 | J43: 0 | K43: 0
B44: 2. Водоснабжение | D44: 2
A45: 41 | B45: 12 | C45: Работа №4 | D45: 2.1 | E45: куб. м в сутки | F45: 1000 | G45: 10000000 | H45: 1.2 | I45: 1 | J45: =H45*I45 -> 1.2 | K45: 12000 | L45: 2024 | M45: 1
A46: 42 | B46: 15 | C46: Работа №5 | D46: 2.2 | E46: км | F46: 10 | G46: 100000000 | H46: 1.1 | I46: 1.2 | J46: 1.32 | K46: 1320 | L46: 2027 | M46: 4
A47: 43 | B47: 67 | C47: Работа №6 | D47: 2.3 | E47: км | F47: 5 | G47: 200000000 | H47: 1 | I47: 1 | J47: 1 | K47: 1000 | L47: 2026 | M47: 2
A48: 44 | B48: 35 | C48: Работа №7 | D48: 2.4 | E48: куб. м в сутки | F48: 500 | G48: 20000000 | H48: 1.15 | I48: 1.2 | J48: 1.38 | K48: 13800 | L48: 2025 | M48: 2
A49: 45 | J49: 0 | K49: 0
A50: 46 | J50: 0 | K50: 0
A51: 47 | J51: 0 | K51: 0
A52: 48 | J52: 0 | K52: 0
A53: 49 | J53: 0 | K53: 0
A54: 50 | J54: 0 | K54: 0
A55: 51 | J55: 0 | K55: 0
A56: 52 | J56: 0 | K56: 0
A57: 53 | J57: 0 | K57: 0
A58: 54 | J58: 0 | K58: 0
A59: 55 | J59: 0 | K59: 0
A60: 56 | J60: 0 | K60: 0
A61: 57 | J61: 0 | K61: 0
A62: 58 | J62: 0 | K62: 0
A63: 59 | J63: 0 | K63: 0
A64: 60 | J64: 0 | K64: 0
A65: 61 | J65: 0 | K65: 0
A66: 62 | J66: 0 | K66: 0
A67: 63 | J67: 0 | K67: 0
A68: 64 | J68: 0 | K68: 0
A69: 65 | J69: 0 | K69: =IFERROR(F69*G69*J69,0)/1000000 -> 0
A70: 66 | J70: 0 | K70: 0
A71: 67 | J71: 0 | K71: 0
A72: 68 | J72: 0 | K72: 0
A73: 69 | J73: 0 | K73: 0
A74: 70 | J74: 0 | K74: 0
A75: 71 | J75: 0 | K75: 0
A76: 72 | J76: 0 | K76: 0
A77: 73 | J77: 0 | K77: 0
A78: 74 | J78: 0 | K78: 0
A79: 75 | J79: 0 | K79: 0
A80: 76 | J80: 0 | K80: 0
A81: 77 | J81: 0 | K81: 0
A82: 78 | J82: 0 | K82: 0
A83: 79 | J83: 0 | K83: 0
A84: 80 | J84: 0 | K84: 0
B85: 3. Водоотведение | D85: 3
A86: 81 | B86: 21 | C86: Работа №8 | D86: 3.1 | E86: км | F86: 100 | G86: 10000000 | H86: 1.4 | I86: 1.2 | J86: =H86*I86 -> 1.68 | K86: =IFERROR(F86*G86*J86,0)/1000000 -> 1680 | L86: 2029 | M86: 5
A87: 82 | B87: 5 | C87: Работа №9 | D87: 3.2 | E87: км | F87: 20 | G87: 20000000 | H87: 1.2 | I87: 1.2 | J87: 1.44 | K87: =IFERROR(F87*G87*J87,0)/1000000 -> 576 | L87: 2028 | M87: 3
A88: 83 | B88: 89 | C88: Работа №10 | D88: 3.3 | E88: куб. м в сутки | F88: 1000 | G88: 30000000 | H88: 1 | I88: 1.2 | J88: 1.2 | K88: 36000 | L88: 2031 | M88: 4
A89: 84 | B89: 73 | C89: Работа №11 | D89: 3.4 | E89: куб. м в сутки | F89: 2000 | G89: 40000000 | H89: 0.87 | I89: 1.2 | J89: 1.044 | K89: 83520 | L89: 2023 | M89: 2
A90: 85 | J90: 0 | K90: 0
A91: 86 | J91: 0 | K91: 0
A92: 87 | J92: 0 | K92: 0
A93: 88 | J93: 0 | K93: 0
A94: 89 | J94: 0 | K94: 0
A95: 90 | J95: 0 | K95: 0
A96: 91 | J96: 0 | K96: 0
A97: 92 | J97: 0 | K97: 0
A98: 93 | J98: 0 | K98: 0
A99: 94 | J99: 0 | K99: 0
A100: 95 | J100: 0 | K100: 0
A101: 96 | J101: 0 | K101: 0
A102: 97 | J102: 0 | K102: 0
A103: 98 | J103: 0 | K103: 0
A104: 99 | J104: 0 | K104: 0
A105: 100 | J105: 0 | K105: 0
A106: 101 | J106: 0 | K106: 0
A107: 102 | J107: 0 | K107: 0
A108: 103 | J108: 0 | K108: 0
A109: 104 | J109: 0 | K109: 0
A110: 105 | J110: 0 | K110: 0
A111: 106 | J111: 0 | K111: 0
A112: 107 | J112: 0 | K112: 0
A113: 108 | J113: 0 | K113: 0
A114: 109 | J114: 0 | K114: 0
A115: 110 | J115: 0 | K115: 0
A116: 111 | J116: 0 | K116: 0
A117: 112 | J117: 0 | K117: 0
A118: 113 | J118: 0 | K118: 0
A119: 114 | J119: 0 | K119: 0
A120: 115 | J120: 0 | K120: 0
A121: 116 | J121: 0 | K121: 0
A122: 117 | J122: 0 | K122: 0
A123: 118 | J123: 0 | K123: 0
A124: 119 | J124: 0 | K124: 0
A125: 120 | J125: 0 | K125: 0
B126: 4. Электроснабжение | D126: 4
A127: 121 | B127: 14 | C127: Работа №12 | D127: 4.1 | E127: км | F127: 50 | G127: 100000000 | H127: 0.84 | I127: 1 | J127: =H127*I127 -> 0.84 | K127: 4200 | L127: 2026 | M127: 2
A128: 122 | B128: 82 | C128: Работа №13 | D128: 4.2 | E128: км | F128: 100 | G128: 110000000 | H128: 0.97 | I128: 1 | J128: 0.97 | K128: 10670 | L128: 2027 | M128: 3
A129: 123 | B129: 83 | C129: Работа №14 | D129: 4.3 | E129: МВт | F129: 1000 | G129: 120000000 | H129: 1.15 | I129: 1 | J129: 1.15 | K129: 138000 | L129: 2026 | M129: 1
A130: 124 | J130: 0 | K130: 0
A131: 125 | J131: 0 | K131: 0
A132: 126 | J132: 0 | K132: 0
A133: 127 | J133: 0 | K133: 0
A134: 128 | J134: 0 | K134: 0
A135: 129 | J135: 0 | K135: 0
A136: 130 | J136: 0 | K136: 0
A137: 131 | J137: 0 | K137: 0
A138: 132 | J138: 0 | K138: 0
A139: 133 | J139: 0 | K139: 0
A140: 134 | J140: 0 | K140: 0
A141: 135 | J141: 0 | K141: 0
A142: 136 | J142: 0 | K142: 0
A143: 137 | J143: 0 | K143: 0
A144: 138 | J144: 0 | K144: 0
A145: 139 | J145: 0 | K145: 0
A146: 140 | J146: 0 | K146: 0
A147: 141 | J147: 0 | K147: 0
A148: 142 | J148: 0 | K148: 0
A149: 143 | J149: 0 | K149: 0
A150: 144 | J150: 0 | K150: 0
A151: 145 | J151: 0 | K151: =IFERROR(F151*G151*J151,0)/1000000 -> 0
A152: 146 | J152: 0 | K152: 0
A153: 147 | J153: 0 | K153: 0
A154: 148 | J154: 0 | K154: 0
A155: 149 | J155: 0 | K155: 0
A156: 150 | J156: 0 | K156: 0
A157: 151 | J157: 0 | K157: 0
A158: 152 | J158: 0 | K158: 0
A159: 153 | J159: 0 | K159: 0
A160: 154 | J160: 0 | K160: 0
A161: 155 | J161: 0 | K161: 0
A162: 156 | J162: 0 | K162: 0
A163: 157 | J163: 0 | K163: 0
A164: 158 | J164: 0 | K164: 0
A165: 159 | J165: 0 | K165: 0
A166: 160 | J166: 0 | K166: 0
B167: 5. Газоснабжение | D167: 5
A168: 161 | B168: 33 | C168: Работа №15 | D168: 5.1 | E168: куб. м в час | F168: 50 | G168: 50000000 | H168: 0.84 | I168: 1 | J168: =H168*I168 -> 0.84 | K168: 2100 | L168: 2026 | M168: 3
A169: 162 | B169: 8 | C169: Работа №16 | D169: 5.2 | E169: км | F169: 100 | G169: 100000000 | H169: 0.95 | I169: 1.2 | J169: 1.14 | K169: 11400 | L169: 2027 | M169: 4
A170: 163 | J170: 0 | K170: 0
A171: 164 | J171: 0 | K171: 0
A172: 165 | J172: 0 | K172: 0
A173: 166 | J173: 0 | K173: 0
A174: 167 | J174: 0 | K174: 0
A175: 168 | J175: 0 | K175: 0
A176: 169 | J176: 0 | K176: 0
A177: 170 | J177: 0 | K177: 0
A178: 171 | J178: 0 | K178: 0
A179: 172 | J179: 0 | K179: 0
A180: 173 | J180: 0 | K180: 0
A181: 174 | J181: 0 | K181: 0
A182: 175 | J182: 0 | K182: 0
A183: 176 | J183: 0 | K183: 0
A184: 177 | J184: 0 | K184: 0
A185: 178 | J185: 0 | K185: 0
A186: 179 | J186: 0 | K186: 0
A187: 180 | J187: 0 | K187: 0
A188: 181 | J188: 0 | K188: 0
A189: 182 | J189: 0 | K189: 0
A190: 183 | J190: 0 | K190: 0
A191: 184 | J191: 0 | K191: 0
A192: 185 | J192: 0 | K192: 0
A193: 186 | J193: 0 | K193: 0
A194: 187 | J194: 0 | K194: 0
A195: 188 | J195: 0 | K195: 0
A196: 189 | J196: 0 | K196: 0
A197: 190 | J197: 0 | K197: 0
A198: 191 | J198: 0 | K198: 0
A199: 192 | J199: 0 | K199: 0
A200: 193 | J200: 0 | K200: 0
A201: 194 | J201: 0 | K201: 0
... 7 more rows

Sheet Схема распределения от периодов
A2: 1 | B2: 2022 | C2: 2023 | D2: 2024 | E2: 2025 | F2: 2026 | G2: 2027 | H2: 2028 | I2: 2029 | J2: 2030 | K2: 2031 | L2: 2032 | M2: 2033 | N2: 2034 | O2: 2035 | P2: 2036 | Q2: 2037 | R2: 2038 | S2: 2039 | T2: 2040
B3: =IF(B2=$B$17,$B$19*data!$F$3,"-") -> - | C3: =IF(C2=$B$17,$B$19*data!$F$3,"-") -> - | D3: =IF(D2=$B$17,$B$19*data!$F$3,"-") -> - | E3: =IF(E2=$B$17,$B$19*data!$F$3,"-") -> 660 | F3: =IF(F2=$B$17,$B$19*data!$F$3,"-") -> - | G3: =IF(G2=$B$17,$B$19*data!$F$3,"-") -> - | H3: =IF(H2=$B$17,$B$19*data!$F$3,"-") -> - | I3: =IF(I2=$B$17,$B$19*data!$F$3,"-") -> - | J3: =IF(J2=$B$17,$B$19*data!$F$3,"-") -> - | K3: =IF(K2=$B$17,$B$19*data!$F$3,"-") -> - | L3: =IF(L2=$B$17,$B$19*data!$F$3,"-") -> - | M3: =IF(M2=$B$17,$B$19*data!$F$3,"-") -> - | N3: =IF(N2=$B$17,$B$19*data!$F$3,"-") -> - | O3: =IF(O2=$B$17,$B$19*data!$F$3,"-") -> - | P3: =IF(P2=$B$17,$B$19*data!$F$3,"-") -> - | Q3: =IF(Q2=$B$17,$B$19*data!$F$3,"-") -> - | R3: =IF(R2=$B$17,$B$19*data!$F$3,"-") -> - | S3: =IF(S2=$B$17,$B$19*data!$F$3,"-") -> - | T3: =IF(T2=$B$17,$B$19*data!$F$3,"-") -> -
A5: 2 | B5: 2022 | C5: 2023 | D5: 2024 | E5: 2025 | F5: 2026 | G5: 2027 | H5: 2028 | I5: 2029 | J5: 2030 | K5: 2031 | L5: 2032 | M5: 2033 | N5: 2034 | O5: 2035 | P5: 2036 | Q5: 2037 | R5: 2038 | S5: 2039 | T5: 2040 | V5: =$B$17-$B$18+1 -> 2023
B6: =IF(B5=$V$5,$B$19*data!$F$4,IF(B5=$B$17,$B$19*data!$G$4,"-")) -> - | C6: =IF(C5=$V$5,$B$19*data!$F$4,IF(C5=$B$17,$B$19*data!$G$4,"-")) -> 330 | D6: =IF(D5=$V$5,$B$19*data!$F$4,IF(D5=$B$17,$B$19*data!$G$4,"-")) -> - | E6: =IF(E5=$V$5,$B$19*data!$F$4,IF(E5=$B$17,$B$19*data!$G$4,"-")) -> 330 | F6: =IF(F5=$V$5,$B$19*data!$F$4,IF(F5=$B$17,$B$19*data!$G$4,"-")) -> - | G6: =IF(G5=$V$5,$B$19*data!$F$4,IF(G5=$B$17,$B$19*data!$G$4,"-")) -> - | H6: =IF(H5=$V$5,$B$19*data!$F$4,IF(H5=$B$17,$B$19*data!$G$4,"-")) -> - | I6: =IF(I5=$V$5,$B$19*data!$F$4,IF(I5=$B$17,$B$19*data!$G$4,"-")) -> - | J6: =IF(J5=$V$5,$B$19*data!$F$4,IF(J5=$B$17,$B$19*data!$G$4,"-")) -> - | K6: =IF(K5=$V$5,$B$19*data!$F$4,IF(K5=$B$17,$B$19*data!$G$4,"-")) -> - | L6: =IF(L5=$V$5,$B$19*data!$F$4,IF(L5=$B$17,$B$19*data!$G$4,"-")) -> - | M6: =IF(M5=$V$5,$B$19*data!$F$4,IF(M5=$B$17,$B$19*data!$G$4,"-")) -> - | N6: =IF(N5=$V$5,$B$19*data!$F$4,IF(N5=$B$17,$B$19*data!$G$4,"-")) -> - | O6: =IF(O5=$V$5,$B$19*data!$F$4,IF(O5=$B$17,$B$19*data!$G$4,"-")) -> - | P6: =IF(P5=$V$5,$B$19*data!$F$4,IF(P5=$B$17,$B$19*data!$G$4,"-")) -> - | Q6: =IF(Q5=$V$5,$B$19*data!$F$4,IF(Q5=$B$17,$B$19*data!$G$4,"-")) -> - | R6: =IF(R5=$V$5,$B$19*data!$F$4,IF(R5=$B$17,$B$19*data!$G$4,"-")) -> - | S6: =IF(S5=$V$5,$B$19*data!$F$4,IF(S5=$B$17,$B$19*data!$G$4,"-")) -> - | T6: =IF(T5=$V$5,$B$19*data!$F$4,IF(T5=$B$17,$B$19*data!$G$4,"-")) -> - | V6: =V5+1 -> 2024
V7: =V6+1 -> 2025
A8: 3 | B8: 2022 | C8: 2023 | D8: 2024 | E8: 2025 | F8: 2026 | G8: 2027 | H8: 2028 | I8: 2029 | J8: 2030 | K8: 2031 | L8: 2032 | M8: 2033 | N8: 2034 | O8: 2035 | P8: 2036 | Q8: 2037 | R8: 2038 | S8: 2039 | T8: 2040 | V8: 2026
B9: =IF(B8=$V$6,$B$19*data!$G$5,IF(B8=$V$5,$B$19*data!$F$5,IF(B8=$B$17,$B$19*data!$H$5,"-"))) -> - | C9: =IF(C8=$V$6,$B$19*data!$G$5,IF(C8=$V$5,$B$19*data!$F$5,IF(C8=$B$17,$B$19*data!$H$5,"-"))) -> 198 | D9: =IF(D8=$V$6,$B$19*data!$G$5,IF(D8=$V$5,$B$19*data!$F$5,IF(D8=$B$17,$B$19*data!$H$5,"-"))) -> 198 | E9: =IF(E8=$V$6,$B$19*data!$G$5,IF(E8=$V$5,$B$19*data!$F$5,IF(E8=$B$17,$B$19*data!$H$5,"-"))) -> 264 | F9: =IF(F8=$V$6,$B$19*data!$G$5,IF(F8=$V$5,$B$19*data!$F$5,IF(F8=$B$17,$B$19*data!$H$5,"-"))) -> - | G9: =IF(G8=$V$6,$B$19*data!$G$5,IF(G8=$V$5,$B$19*data!$F$5,IF(G8=$B$17,$B$19*data!$H$5,"-"))) -> - | H9: =IF(H8=$V$6,$B$19*data!$G$5,IF(H8=$V$5,$B$19*data!$F$5,IF(H8=$B$17,$B$19*data!$H$5,"-"))) -> - | I9: =IF(I8=$V$6,$B$19*data!$G$5,IF(I8=$V$5,$B$19*data!$F$5,IF(I8=$B$17,$B$19*data!$H$5,"-"))) -> - | J9: =IF(J8=$V$6,$B$19*data!$G$5,IF(J8=$V$5,$B$19*data!$F$5,IF(J8=$B$17,$B$19*data!$H$5,"-"))) -> - | K9: =IF(K8=$V$6,$B$19*data!$G$5,IF(K8=$V$5,$B$19*data!$F$5,IF(K8=$B$17,$B$19*data!$H$5,"-"))) -> - | L9: =IF(L8=$V$6,$B$19*data!$G$5,IF(L8=$V$5,$B$19*data!$F$5,IF(L8=$B$17,$B$19*data!$H$5,"-"))) -> - | M9: =IF(M8=$V$6,$B$19*data!$G$5,IF(M8=$V$5,$B$19*data!$F$5,IF(M8=$B$17,$B$19*data!$H$5,"-"))) -> - | N9: =IF(N8=$V$6,$B$19*data!$G$5,IF(N8=$V$5,$B$19*data!$F$5,IF(N8=$B$17,$B$19*data!$H$5,"-"))) -> - | O9: =IF(O8=$V$6,$B$19*data!$G$5,IF(O8=$V$5,$B$19*data!$F$5,IF(O8=$B$17,$B$19*data!$H$5,"-"))) -> - | P9: =IF(P8=$V$6,$B$19*data!$G$5,IF(P8=$V$5,$B$19*data!$F$5,IF(P8=$B$17,$B$19*data!$H$5,"-"))) -> - | Q9: =IF(Q8=$V$6,$B$19*data!$G$5,IF(Q8=$V$5,$B$19*data!$F$5,IF(Q8=$B$17,$B$19*data!$H$5,"-"))) -> - | R9: =IF(R8=$V$6,$B$19*data!$G$5,IF(R8=$V$5,$B$19*data!$F$5,IF(R8=$B$17,$B$19*data!$H$5,"-"))) -> - | S9: =IF(S8=$V$6,$B$19*data!$G$5,IF(S8=$V$5,$B$19*data!$F$5,IF(S8=$B$17,$B$19*data!$H$5,"-"))) -> - | T9: =IF(T8=$V$6,$B$19*data!$G$5,IF(T8=$V$5,$B$19*data!$F$5,IF(T8=$B$17,$B$19*data!$H$5,"-"))) -> -
A11: 4 | B11: 2022 | C11: 2023 | D11: 2024 | E11: 2025 | F11: 2026 | G11: 2027 | H11: 2028 | I11: 2029 | J11: 2030 | K11: 2031 | L11: 2032 | M11: 2033 | N11: 2034 | O11: 2035 | P11: 2036 | Q11: 2037 | R11: 2038 | S11: 2039 | T11: 2040
B12: =IF(B8=$V$7,$B$19*data!$H$6,IF(B8=$V$6,$B$19*data!$G$6,IF(B8=$V$5,$B$19*data!$F$6,IF(B8=$B$17,$B$19*data!$I$6,"-")))) -> - | C12: =IF(C8=$V$7,$B$19*data!$H$6,IF(C8=$V$6,$B$19*data!$G$6,IF(C8=$V$5,$B$19*data!$F$6,IF(C8=$B$17,$B$19*data!$I$6,"-")))) -> 132 | D12: =IF(D8=$V$7,$B$19*data!$H$6,IF(D8=$V$6,$B$19*data!$G$6,IF(D8=$V$5,$B$19*data!$F$6,IF(D8=$B$17,$B$19*data!$I$6,"-")))) -> 132 | E12: =IF(E8=$V$7,$B$19*data!$H$6,IF(E8=$V$6,$B$19*data!$G$6,IF(E8=$V$5,$B$19*data!$F$6,IF(E8=$B$17,$B$19*data!$I$6,"-")))) -> 198 | F12: =IF(F8=$V$7,$B$19*data!$H$6,IF(F8=$V$6,$B$19*data!$G$6,IF(F8=$V$5,$B$19*data!$F$6,IF(F8=$B$17,$B$19*data!$I$6,"-")))) -> - | G12: =IF(G8=$V$7,$B$19*data!$H$6,IF(G8=$V$6,$B$19*data!$G$6,IF(G8=$V$5,$B$19*data!$F$6,IF(G8=$B$17,$B$19*data!$I$6,"-")))) -> - | H12: =IF(H8=$V$7,$B$19*data!$H$6,IF(H8=$V$6,$B$19*data!$G$6,IF(H8=$V$5,$B$19*data!$F$6,IF(H8=$B$17,$B$19*data!$I$6,"-")))) -> - | I12: =IF(I8=$V$7,$B$19*data!$H$6,IF(I8=$V$6,$B$19*data!$G$6,IF(I8=$V$5,$B$19*data!$F$6,IF(I8=$B$17,$B$19*data!$I$6,"-")))) -> - | J12: =IF(J8=$V$7,$B$19*data!$H$6,IF(J8=$V$6,$B$19*data!$G$6,IF(J8=$V$5,$B$19*data!$F$6,IF(J8=$B$17,$B$19*data!$I$6,"-")))) -> - | K12: =IF(K8=$V$7,$B$19*data!$H$6,IF(K8=$V$6,$B$19*data!$G$6,IF(K8=$V$5,$B$19*data!$F$6,IF(K8=$B$17,$B$19*data!$I$6,"-")))) -> - | L12: =IF(L8=$V$7,$B$19*data!$H$6,IF(L8=$V$6,$B$19*data!$G$6,IF(L8=$V$5,$B$19*data!$F$6,IF(L8=$B$17,$B$19*data!$I$6,"-")))) -> - | M12: =IF(M8=$V$7,$B$19*data!$H$6,IF(M8=$V$6,$B$19*data!$G$6,IF(M8=$V$5,$B$19*data!$F$6,IF(M8=$B$17,$B$19*data!$I$6,"-")))) -> - | N12: =IF(N8=$V$7,$B$19*data!$H$6,IF(N8=$V$6,$B$19*data!$G$6,IF(N8=$V$5,$B$19*data!$F$6,IF(N8=$B$17,$B$19*data!$I$6,"-")))) -> - | O12: =IF(O8=$V$7,$B$19*data!$H$6,IF(O8=$V$6,$B$19*data!$G$6,IF(O8=$V$5,$B$19*data!$F$6,IF(O8=$B$17,$B$19*data!$I$6,"-")))) -> - | P12: =IF(P8=$V$7,$B$19*data!$H$6,IF(P8=$V$6,$B$19*data!$G$6,IF(P8=$V$5,$B$19*data!$F$6,IF(P8=$B$17,$B$19*data!$I$6,"-")))) -> - | Q12: =IF(Q8=$V$7,$B$19*data!$H$6,IF(Q8=$V$6,$B$19*data!$G$6,IF(Q8=$V$5,$B$19*data!$F$6,IF(Q8=$B$17,$B$19*data!$I$6,"-")))) -> - | R12: =IF(R8=$V$7,$B$19*data!$H$6,IF(R8=$V$6,$B$19*data!$G$6,IF(R8=$V$5,$B$19*data!$F$6,IF(R8=$B$17,$B$19*data!$I$6,"-")))) -> - | S12: =IF(S8=$V$7,$B$19*data!$H$6,IF(S8=$V$6,$B$19*data!$G$6,IF(S8=$V$5,$B$19*data!$F$6,IF(S8=$B$17,$B$19*data!$I$6,"-")))) -> - | T12: =IF(T8=$V$7,$B$19*data!$H$6,IF(T8=$V$6,$B$19*data!$G$6,IF(T8=$V$5,$B$19*data!$F$6,IF(T8=$B$17,$B$19*data!$I$6,"-")))) -> -
A14: 5 | B14: 2022 | C14: 2023 | D14: 2024 | E14: 2025 | F14: 2026 | G14: 2027 | H14: 2028 | I14: 2029 | J14: 2030 | K14: 2031 | L14: 2032 | M14: 2033 | N14: 2034 | O14: 2035 | P14: 2036 | Q14: 2037 | R14: 2038 | S14: 2039 | T14: 2040
B15: =IF(B8=$V$8,$B$19*data!$I$7,IF(B8=$V$7,$B$19*data!$H$7,IF(B8=$V$6,$B$19*data!$G$7,IF(B8=$V$5,$B$19*data!$F$7,IF(B8=$B$17,$B$19*data!$J$7,"-"))))) -> - | C15: =IF(C8=$V$8,$B$19*data!$I$7,IF(C8=$V$7,$B$19*data!$H$7,IF(C8=$V$6,$B$19*data!$G$7,IF(C8=$V$5,$B$19*data!$F$7,IF(C8=$B$17,$B$19*data!$J$7,"-"))))) -> 132 | D15: =IF(D8=$V$8,$B$19*data!$I$7,IF(D8=$V$7,$B$19*data!$H$7,IF(D8=$V$6,$B$19*data!$G$7,IF(D8=$V$5,$B$19*data!$F$7,IF(D8=$B$17,$B$19*data!$J$7,"-"))))) -> 132 | E15: =IF(E8=$V$8,$B$19*data!$I$7,IF(E8=$V$7,$B$19*data!$H$7,IF(E8=$V$6,$B$19*data!$G$7,IF(E8=$V$5,$B$19*data!$F$7,IF(E8=$B$17,$B$19*data!$J$7,"-"))))) -> 132 | F15: =IF(F8=$V$8,$B$19*data!$I$7,IF(F8=$V$7,$B$19*data!$H$7,IF(F8=$V$6,$B$19*data!$G$7,IF(F8=$V$5,$B$19*data!$F$7,IF(F8=$B$17,$B$19*data!$J$7,"-"))))) -> 132 | G15: =IF(G8=$V$8,$B$19*data!$I$7,IF(G8=$V$7,$B$19*data!$H$7,IF(G8=$V$6,$B$19*data!$G$7,IF(G8=$V$5,$B$19*data!$F$7,IF(G8=$B$17,$B$19*data!$J$7,"-"))))) -> - | H15: =IF(H8=$V$8,$B$19*data!$I$7,IF(H8=$V$7,$B$19*data!$H$7,IF(H8=$V$6,$B$19*data!$G$7,IF(H8=$V$5,$B$19*data!$F$7,IF(H8=$B$17,$B$19*data!$J$7,"-"))))) -> - | I15: =IF(I8=$V$8,$B$19*data!$I$7,IF(I8=$V$7,$B$19*data!$H$7,IF(I8=$V$6,$B$19*data!$G$7,IF(I8=$V$5,$B$19*data!$F$7,IF(I8=$B$17,$B$19*data!$J$7,"-"))))) -> - | J15: =IF(J8=$V$8,$B$19*data!$I$7,IF(J8=$V$7,$B$19*data!$H$7,IF(J8=$V$6,$B$19*data!$G$7,IF(J8=$V$5,$B$19*data!$F$7,IF(J8=$B$17,$B$19*data!$J$7,"-"))))) -> - | K15: =IF(K8=$V$8,$B$19*data!$I$7,IF(K8=$V$7,$B$19*data!$H$7,IF(K8=$V$6,$B$19*data!$G$7,IF(K8=$V$5,$B$19*data!$F$7,IF(K8=$B$17,$B$19*data!$J$7,"-"))))) -> - | L15: =IF(L8=$V$8,$B$19*data!$I$7,IF(L8=$V$7,$B$19*data!$H$7,IF(L8=$V$6,$B$19*data!$G$7,IF(L8=$V$5,$B$19*data!$F$7,IF(L8=$B$17,$B$19*data!$J$7,"-"))))) -> - | M15: =IF(M8=$V$8,$B$19*data!$I$7,IF(M8=$V$7,$B$19*data!$H$7,IF(M8=$V$6,$B$19*data!$G$7,IF(M8=$V$5,$B$19*data!$F$7,IF(M8=$B$17,$B$19*data!$J$7,"-"))))) -> - | N15: =IF(N8=$V$8,$B$19*data!$I$7,IF(N8=$V$7,$B$19*data!$H$7,IF(N8=$V$6,$B$19*data!$G$7,IF(N8=$V$5,$B$19*data!$F$7,IF(N8=$B$17,$B$19*data!$J$7,"-"))))) -> - | O15: =IF(O8=$V$8,$B$19*data!$I$7,IF(O8=$V$7,$B$19*data!$H$7,IF(O8=$V$6,$B$19*data!$G$7,IF(O8=$V$5,$B$19*data!$F$7,IF(O8=$B$17,$B$19*data!$J$7,"-"))))) -> - | P15: =IF(P8=$V$8,$B$19*data!$I$7,IF(P8=$V$7,$B$19*data!$H$7,IF(P8=$V$6,$B$19*data!$G$7,IF(P8=$V$5,$B$19*data!$F$7,IF(P8=$B$17,$B$19*data!$J$7,"-"))))) -> - | Q15: =IF(Q8=$V$8,$B$19*data!$I$7,IF(Q8=$V$7,$B$19*data!$H$7,IF(Q8=$V$6,$B$19*data!$G$7,IF(Q8=$V$5,$B$19*data!$F$7,IF(Q8=$B$17,$B$19*data!$J$7,"-"))))) -> - | R15: =IF(R8=$V$8,$B$19*data!$I$7,IF(R8=$V$7,$B$19*data!$H$7,IF(R8=$V$6,$B$19*data!$G$7,IF(R8=$V$5,$B$19*data!$F$7,IF(R8=$B$17,$B$19*data!$J$7,"-"))))) -> - | S15: =IF(S8=$V$8,$B$19*data!$I$7,IF(S8=$V$7,$B$19*data!$H$7,IF(S8=$V$6,$B$19*data!$G$7,IF(S8=$V$5,$B$19*data!$F$7,IF(S8=$B$17,$B$19*data!$J$7,"-"))))) -> - | T15: =IF(T8=$V$8,$B$19*data!$I$7,IF(T8=$V$7,$B$19*data!$H$7,IF(T8=$V$6,$B$19*data!$G$7,IF(T8=$V$5,$B$19*data!$F$7,IF(T8=$B$17,$B$19*data!$J$7,"-"))))) -> -
A17: год | B17: 2025 | C17: Лист "Смета" графа "L"
A18: срок | B18: 3 | C18: Лист "Смета" графа "M"
A19: стоимость | B19: 660 | C19: Лист "Смета" графа "K"

Sheet Шаблон карточки проекта
B1: Шаблон карточки проекта
C3: =CONCATENATE($C$25,".",$C$26,".",$C$27," ",A3) -> 1.2.2 | D3: Наименование проекта
A4: 1 | C4: =CONCATENATE($C$25,".",$C$26,".",$C$27,".",A4) -> 1.2.2.1 | D4: Ссылка на соответствующие подразделы обосновывающих материалов
A5: 2 | C5: =CONCATENATE($C$25,".",$C$26,".",$C$27,".",A5) -> 1.2.2.2 | D5: Краткое описание проекта
A6: 3 | C6: =CONCATENATE($C$25,".",$C$26,".",$C$27,".",A6) -> 1.2.2.3 | D6: Цель проекта
A7: 4 | C7: =CONCATENATE($C$25,".",$C$26,".",$C$27,".",A7) -> 1.2.2.4 | D7: Технические характеристики проекта, в том числе:
D8: ввод мощностей, куб. м в сутки
D9: строительство сетей, км
A10: 5 | C10: =CONCATENATE($C$25,".",$C$26,".",$C$27,".",A10) -> 1.2.2.5 | D10: Необходимые капитальные затраты, млн руб.
A11: 6 | C11: =CONCATENATE($C$25,".",$C$26,".",$C$27,".",A11) -> 1.2.2.6 | D11: Срок реализации проекта
A12: 7 | C12: =CONCATENATE($C$25,".",$C$26,".",$C$27,".",A12) -> 1.2.2.7 | D12: Источники инвестиций, в том числе:
A13: 8 | C13: =CONCATENATE($C$25,".",$C$26,".",$C$27,".",A13) -> 1.2.2.8 | D13: Бюджетные источники, в том числе:
D14: Федеральный бюджет
D15: Региональный бюджет
D16: Местный бюджет
A17: 9 | C17: =CONCATENATE($C$25,".",$C$26,".",$C$27,".",A17) -> 1.2.2.9 | D17: Внебюджетные источники
D18: Источники возврата внебюджетных инвестиций, в том числе:
D19: Инвестиционная составляющая в тарифе
D20: Плата за подключение к системе ресурсоснабжения
A21: 10 | C21: =CONCATENATE($C$25,".",$C$26,".",$C$27,".",A21) -> 1.2.2.10 | D21: Срок окупаемости внебюджетных инвестиций, лет
B24: Нумерация
B25: Приложение | C25: 1
B26: Раздел | C26: 2
B27: Проект | C27: 2

Sheet Приложения
B2: № приложения | C2: Наименование | D2: Начало периода, год
B3: 1 | C3: ПРОГРАММА ИНВЕСТИЦИОННЫХ ПРОЕКТОВ В ТЕПЛОСНАБЖЕНИИ | D3: 2022
B4: 2 | C4: ПРОГРАММА ИНВЕСТИЦИОННЫХ ПРОЕКТОВ В ВОДОСНАБЖЕНИИ | D4: 2022
B5: 3 | C5: ПРОГРАММА ИНВЕСТИЦИОННЫХ ПРОЕКТОВ В ВОДООТВЕДЕНИИ | D5: 2022
B6: 4 | C6: ПРОГРАММА ИНВЕСТИЦИОННЫХ ПРОЕКТОВ В ЭЛЕКТРОСНАБЖЕНИИ | D6: 2022
B7: 5 | C7: ПРОГРАММА ИНВЕСТИЦИОННЫХ ПРОЕКТОВ В ГАЗОСНАБЖЕНИИ | D7: 2022

Sheet 1. Теплоснабжение
B1: =CONCATENATE("ПРИЛОЖЕНИЕ"," ",Приложения!B3,". ",Приложения!C3) -> ПРИЛОЖЕНИЕ 1. ПРОГРАММА ИНВЕСТИЦИОННЫХ ПРОЕКТОВ В ТЕПЛОСНАБЖЕНИИ
B3: № пп | C3: Инвестиционные проекты | D3: Финансовые затраты на реализацию (млн руб.)
D4: Всего | E4: =Приложения!D3 -> 2022 | F4: =E4+1 -> 2023 | G4: =F4+1 -> 2024 | H4: 2025 | I4: 2026 | J4: 2027 | K4: 2028 | L4: 2029 | M4: 2030 | N4: 2031
E5: год | F5: год | G5: год | H5: год | I5: год | J5: год | K5: год | L5: год | M5: год | N5: год
B6: 1.1 | C6: Реконструкция объектов и сетей теплоснабжения
B7: 1.1.1 | C7: Наименование проекта | D7: =Смета!C4 -> Работа №1 | O7: "Наименование сооружения" из листа "Смета"
B8: 1.1.1.1 | C8: Ссылка на соответствующие подразделы обосновывающих материалов
B9: 1.1.1.2 | C9: Краткое описание проекта
B10: 1.1.1.3 | C10: Цель проекта
B11: 1.1.1.4 | C11: Технические характеристики проекта, в том числе:
C12: ввод мощностей, МВт
C13: строительство сетей, км
B14: 1.1.1.5 | C14: Необходимые капитальные затраты, млн руб. | D14: =Смета!K4 -> 660 | E14: =E16 -> - | F14: =F16 -> - | G14: 330 | H14: 330 | I14: - | J14: - | K14: - | L14: - | M14: - | N14: - | O14: "Всего, руб." из листа "Смета", сформатированием без десятичных
B15: 1.1.1.6 | C15: Срок реализации проекта | D15: =Смета!M4 -> 2 | O15: "Срок реализации, лет" из листа "Смета"
B16: 1.1.1.7 | C16: Источники инвестиций, в том числе: | D16: =IF(SUM(E16:N16)=D14,D14,"Ошибка!") -> 660 | E16: - | F16: - | G16: 330 | H16: 330 | I16: - | J16: - | K16: - | L16: - | M16: - | N16: - | O16: Разбивка общей суммы согласно алгоритму из листа "Схема распределения от периодов"
B17: 1.1.1.8 | C17: Бюджетные источники, в том числе: | D17: =SUM(D18:D20) -> 0 | E17: =SUM(E18:E20) -> 0 | F17: 0 | G17: 0 | H17: 0 | I17: 0 | J17: 0 | K17: 0 | L17: 0 | M17: 0 | N17: 0 | O17: на данном этапе ячейки, выделенные желтым цветом, не требуют автоматизации
C18: Федеральный бюджет | D18: =SUM(E18:N18) -> 0
C19: Региональный бюджет | D19: =SUM(E19:N19) -> 0
C20: Местный бюджет | D20: 0
B21: 1.1.1.9 | C21: Внебюджетные источники | D21: =SUM(E21:N21) -> 660 | E21: =E22 -> 0 | F21: =F22 -> 0 | G21: 330 | H21: 330 | I21: 0 | J21: 0 | K21: 0 | L21: 0 | M21: 0 | N21: 0
C22: Источники возврата внебюджетных инвестиций, в том числе: | D22: =SUM(D23:D24) -> 660 | E22: =SUM(E23:E24) -> 0 | F22: =SUM(F23:F24) -> 0 | G22: 330 | H22: 330 | I22: 0 | J22: 0 | K22: 0 | L22: 0 | M22: 0 | N22: 0
C23: Инвестиционная составляющая в тарифе | D23: =SUM(E23:N23) -> 0
C24: Плата за подключение к системе ресурсоснабжения | D24: =SUM(E24:N24) -> 660 | G24: 330 | H24: 330
B25: 1.1.1.10 | C25: Срок окупаемости внебюджетных инвестиций, лет
B26: 1.2 | C26: Строительство объектов и сетей теплоснабжения
B27: 1.2.1 | C27: Наименование проекта | D27: =Смета!C5 -> Работа №2
B28: 1.2.1.1 | C28: Ссылка на соответствующие подразделы обосновывающих материалов
B29: 1.2.1.2 | C29: Краткое описание проекта
B30: 1.2.1.3 | C30: Цель проекта
B31: 1.2.1.4 | C31: Технические характеристики проекта, в том числе:
C32: ввод мощностей, МВт
C33: строительство сетей, км
B34: 1.2.1.5 | C34: Необходимые капитальные затраты, млн руб. | D34: =Смета!K5 -> 600 | E34: =E36 -> - | F34: =F36 -> - | G34: 180 | H34: 180 | I34: 240 | J34: - | K34: - | L34: - | M34: - | N34: -
B35: 1.2.1.6 | C35: Срок реализации проекта | D35: =Смета!M5 -> 3
B36: 1.2.1.7 | C36: Источники инвестиций, в том числе: | D36: =IF(SUM(E36:N36)=D34,D34,"Ошибка!") -> 600 | E36: - | F36: - | G36: 180 | H36: 180 | I36: 240 | J36: - | K36: - | L36: - | M36: - | N36: -
B37: 1.2.1.8 | C37: Бюджетные источники, в том числе: | D37: =SUM(D38:D40) -> 600 | E37: =SUM(E38:E40) -> 0 | F37: =SUM(F38:F40) -> 0 | G37: =SUM(G38:G40) -> 180 | H37: =SUM(H38:H40) -> 180 | I37: =SUM(I38:I40) -> 240 | J37: =SUM(J38:J40) -> 0 | K37: =SUM(K38:K40) -> 0 | L37: =SUM(L38:L40) -> 0 | M37: =SUM(M38:M40) -> 0 | N37: =SUM(N38:N40) -> 0
C38: Федеральный бюджет | D38: =SUM(E38:N38) -> 0
C39: Региональный бюджет | D39: =SUM(E39:N39) -> 0
C40: Местный бюджет | D40: 600 | G40: 180 | H40: 180 | I40: 240
B41: 1.2.1.9 | C41: Внебюджетные источники | D41: =SUM(E41:N41) -> 0 | E41: =E42 -> 0 | F41: =F42 -> 0 | G41: =G42 -> 0 | H41: =H42 -> 0 | I41: =I42 -> 0 | J41: =J42 -> 0 | K41: =K42 -> 0 | L41: =L42 -> 0 | M41: =M42 -> 0 | N41: =N42 -> 0
C42: Источники возврата внебюджетных инвестиций, в том числе: | D42: =SUM(D43:D44) -> 0 | E42: =SUM(E43:E44) -> 0 | F42: =SUM(F43:F44) -> 0 | G42: =SUM(G43:G44) -> 0 | H42: =SUM(H43:H44) -> 0 | I42: =SUM(I43:I44) -> 0 | J42: =SUM(J43:J44) -> 0 | K42: =SUM(K43:K44) -> 0 | L42: =SUM(L43:L44) -> 0 | M42: =SUM(M43:M44) -> 0 | N42: =SUM(N43:N44) -> 0
C43: Инвестиционная составляющая в тарифе | D43: =SUM(E43:N43) -> 0
C44: Плата за подключение к системе ресурсоснабжения | D44: =SUM(E44:N44) -> 0
B45: 1.2.1.10 | C45: Срок окупаемости внебюджетных инвестиций, лет
B46: 1.2.2 | C46: Наименование проекта | D46: =Смета!C7 -> Новая работа | O46: При внесении информации в графы “С” и “D” листа “Смета” здесь автоматически должен появляться новый блок, со всеми формулами и т.п.
B47: 1.2.2.1 | C47: Ссылка на соответствующие подразделы обосновывающих материалов
B48: 1.2.2.2 | C48: Краткое описание проекта
B49: 1.2.2.3 | C49: Цель проекта
B50: 1.2.2.4 | C50: Технические характеристики проекта, в том числе:
C51: ввод мощностей, МВт
C52: строительство сетей, км
B53: 1.2.2.5 | C53: Необходимые капитальные затраты, млн руб. | D53: =Смета!K7 -> 375 | E53: =E55 -> - | F53: =F55 -> - | G53: - | H53: - | I53: - | J53: - | K53: 187.5 | L53: 187.5 | M53: - | N53: -
B54: 1.2.2.6 | C54: Срок реализации проекта | D54: =Смета!M7 -> 2
B55: 1.2.2.7 | C55: Источники инвестиций, в том числе: | D55: =IF(SUM(E55:N55)=D53,D53,"Ошибка!") -> 375 | E55: - | F55: - | G55: - | H55: - | I55: - | J55: - | K55: 187.5 | L55: 187.5 | M55: - | N55: -
B56: 1.2.2.8 | C56: Бюджетные источники, в том числе: | D56: =SUM(D57:D59) -> 375 | E56: =SUM(E57:E59) -> 0 | F56: =SUM(F57:F59) -> 0 | G56: =SUM(G57:G59) -> 0 | H56: =SUM(H57:H59) -> 0 | I56: =SUM(I57:I59) -> 0 | J56: =SUM(J57:J59) -> 0 | K56: =SUM(K57:K59) -> 187.5 | L56: =SUM(L57:L59) -> 187.5 | M56: =SUM(M57:M59) -> 0 | N56: =SUM(N57:N59) -> 0
C57: Федеральный бюджет | D57: =SUM(E57:N57) -> 0
C58: Региональный бюджет | D58: =SUM(E58:N58) -> 375 | K58: 187.5 | L58: 187.5
C59: Местный бюджет | D59: 0
B60: 1.2.2.9 | C60: Внебюджетные источники | D60: =SUM(E60:N60) -> 0 | E60: =E61 -> 0 | F60: =F61 -> 0 | G60: =G61 -> 0 | H60: =H61 -> 0 | I60: =I61 -> 0 | J60: =J61 -> 0 | K60: =K61 -> 0 | L60: =L61 -> 0 | M60: =M61 -> 0 | N60: =N61 -> 0
C61: Источники возврата внебюджетных инвестиций, в том числе: | D61: =SUM(D62:D63) -> 0 | E61: =SUM(E62:E63) -> 0 | F61: =SUM(F62:F63) -> 0 | G61: =SUM(G62:G63) -> 0 | H61: =SUM(H62:H63) -> 0 | I61: =SUM(I62:I63) -> 0 | J61: =SUM(J62:J63) -> 0 | K61: =SUM(K62:K63) -> 0 | L61: =SUM(L62:L63) -> 0 | M61: =SUM(M62:M63) -> 0 | N61: =SUM(N62:N63) -> 0
C62: Инвестиционная составляющая в тарифе | D62: =SUM(E62:N62) -> 0
C63: Плата за подключение к системе ресурсоснабжения | D63: =SUM(E63:N63) -> 0
B64: 1.2.2.10 | C64: Срок окупаемости внебюджетных инвестиций, лет
B65: 1.3 | C65: Строительство объектов и сетей теплоснабжения для перспективной застройки
B66: 1.3.1 | C66: Наименование проекта | D66: =Смета!C6 -> Работа №3
B67: 1.3.1.1 | C67: Ссылка на соответствующие подразделы обосновывающих материалов
B68: 1.3.1.2 | C68: Краткое описание проекта
B69: 1.3.1.3 | C69: Цель проекта
B70: 1.3.1.4 | C70: Технические характеристики проекта, в том числе:
C71: ввод мощностей, МВт
C72: строительство сетей, км
B73: 1.3.1.5 | C73: Необходимые капитальные затраты, млн руб. | D73: =Смета!K6 -> 120 | E73: =E75 -> - | F73: =F75 -> - | G73: - | H73: - | I73: =I75 -> 24 | J73: 24 | K73: 24 | L73: 24 | M73: 24 | N73: -
B74: 1.3.1.6 | C74: Срок реализации проекта | D74: =Смета!M6 -> 5
B75: 1.3.1.7 | C75: Источники инвестиций, в том числе: | D75: =IF(SUM(E75:N75)=D73,D73,"Ошибка!") -> 120 | E75: - | F75: - | G75: - | H75: - | I75: 24 | J75: 24 | K75: 24 | L75: 24 | M75: 24 | N75: -
B76: 1.3.1.8 | C76: Бюджетные источники, в том числе: | D76: =SUM(D77:D79) -> 120 | E76: =SUM(E77:E79) -> 0 | F76: =SUM(F77:F79) -> 0 | G76: =SUM(G77:G79) -> 0 | H76: =SUM(H77:H79) -> 0 | I76: =SUM(I77:I79) -> 24 | J76: =SUM(J77:J79) -> 24 | K76: =SUM(K77:K79) -> 24 | L76: =SUM(L77:L79) -> 24 | M76: =SUM(M77:M79) -> 24 | N76: =SUM(N77:N79) -> 0
C77: Федеральный бюджет | D77: =SUM(E77:N77) -> 120 | I77: 24 | J77: 24 | K77: 24 | L77: 24 | M77: 24
C78: Региональный бюджет | D78: =SUM(E78:N78) -> 0
C79: Местный бюджет | D79: 0
B80: 1.3.1.9 | C80: Внебюджетные источники | D80: =SUM(E80:N80) -> 0 | E80: =E81 -> 0 | F80: =F81 -> 0 | G80: =G81 -> 0 | H80: =H81 -> 0 | I80: =I81 -> 0 | J80: =J81 -> 0 | K80: =K81 -> 0 | L80: =L81 -> 0 | M80: =M81 -> 0 | N80: =N81 -> 0
C81: Источники возврата внебюджетных инвестиций, в том числе: | D81: =SUM(D82:D83) -> 0 | E81: =SUM(E82:E83) -> 0 | F81: =SUM(F82:F83) -> 0 | G81: =SUM(G82:G83) -> 0 | H81: =SUM(H82:H83) -> 0 | I81: =SUM(I82:I83) -> 0 | J81: =SUM(J82:J83) -> 0 | K81: =SUM(K82:K83) -> 0 | L81: =SUM(L82:L83) -> 0 | M81: =SUM(M82:M83) -> 0 | N81: =SUM(N82:N83) -> 0
C82: Инвестиционная составляющая в тарифе | D82: =SUM(E82:N82) -> 0
C83: Плата за подключение к системе ресурсоснабжения | D83: =SUM(E83:N83) -> 0
B84: 1.3.1.10 | C84: Срок окупаемости внебюджетных инвестиций, лет
B85: 1.4 | C85: ВСЕГО ПО СИСТЕМЕ | D85: =SUMIF($C7:$N84,$C$14,D7:D84) -> 1755 | E85: =SUMIF($C7:$N84,$C$14,E7:E84) -> 0 | F85: 0 | G85: 510 | H85: 510 | I85: 264 | J85: 24 | K85: 211.5 | L85: 211.5 | M85: 24 | N85: 0 | O85: При добавлении карточек проектов и расширении таблицы формула должна включать добавляемые разделы
C86: Источники инвестиций, в том числе: | D86: =SUM(D87,D91) -> 1755 | E86: =SUM(E87,E91) -> 0 | F86: 0 | G86: 510 | H86: 510 | I86: 264 | J86: 24 | K86: 211.5 | L86: 211.5 | M86: 24 | N86: 0
B87: 1.4.1 | C87: Бюджетные источники, в том числе: | D87: =SUM(D88:D90) -> 1095 | E87: =SUM(E88:E90) -> 0 | F87: 0 | G87: 180 | H87: 180 | I87: 264 | J87: 24 | K87: 211.5 | L87: 211.5 | M87: 24 | N87: 0
C88: Федеральный бюджет | D88: =SUMIF($C7:$N84,$C$18,D7:D84) -> 120 | E88: =SUMIF($C7:$N84,$C$18,E7:E84) -> 0 | F88: 0 | G88: 0 | H88: 0 | I88: 24 | J88: 24 | K88: 24 | L88: 24 | M88: 24 | N88: 0
C89: Региональный бюджет | D89: =SUMIF($C7:$N84,$C$19,D7:D84) -> 375 | E89: =SUMIF($C7:$N84,$C$19,E7:E84) -> 0 | F89: 0 | G89: 0 | H89: 0 | I89: 0 | J89: 0 | K89: 187.5 | L89: 187.5 | M89: 0 | N89: 0
C90: Местный бюджет | D90: =SUMIF($C7:$N84,$C$20,D7:D84) -> 600 | E90: =SUMIF($C7:$N84,$C$20,E7:E84) -> 0 | F90: 0 | G90: 180 | H90: 180 | I90: 240 | J90: 0 | K90: 0 | L90: 0 | M90: 0 | N90: 0
B91: 1.4.2 | C91: Внебюджетные источники | D91: =D92 -> 660 | E91: =E92 -> 0 | F91: 0 | G91: 330 | H91: 330 | I91: 0 | J91: 0 | K91: 0 | L91: 0 | M91: 0 | N91: 0
C92: Источники возврата внебюджетных инвестиций, в том числе: | D92: =SUM(D93:D94) -> 660 | E92: =SUM(E93:E94) -> 0 | F92: 0 | G92: 330 | H92: 330 | I92: 0 | J92: 0 | K92: 0 | L92: 0 | M92: 0 | N92: 0
C93: Инвестиционная составляющая в тарифе | D93: =SUMIF($C7:$N84,$C$23,D7:D84) -> 0 | E93: =SUMIF($C7:$N84,$C$23,E7:E84) -> 0 | F93: 0 | G93: 0 | H93: 0 | I93: 0 | J93: 0 | K93: 0 | L93: 0 | M93: 0 | N93: 0
C94: Плата за подключение к системе ресурсоснабжения | D94: =SUMIF($C7:$N84,$C$24,D7:D84) -> 660 | E94: =SUMIF($C7:$N84,$C$24,E7:E84) -> 0 | F94: 0 | G94: 330 | H94: 330 | I94: 0 | J94: 0 | K94: 0 | L94: 0 | M94: 0 | N94: 0
C96: Control | D96: =IF(D85=D86,"ОК","Ошибка") -> ОК | E96: =IF(E85=E86,"ОК","Ошибка") -> ОК | F96: ОК | G96: ОК | H96: ОК | I96: ОК | J96: ОК | K96: ОК | L96: ОК | M96: ОК | N96: ОК

Sheet 2. Водоснабжение
B1: =CONCATENATE("ПРИЛОЖЕНИЕ"," ",Приложения!B4,". ",Приложения!C4) -> ПРИЛОЖЕНИЕ 2. ПРОГРАММА ИНВЕСТИЦИОННЫХ ПРОЕКТОВ В ВОДОСНАБЖЕНИИ
B3: № пп | C3: Инвестиционные проекты | D3: Финансовые затраты на реализацию (млн руб.)
D4: Всего | E4: =Приложения!D4 -> 2022 | F4: =E4+1 -> 2023 | G4: =F4+1 -> 2024 | H4: 2025 | I4: 2026 | J4: 2027 | K4: 2028 | L4: 2029 | M4: 2030 | N4: 2031
E5: год | F5: год | G5: год | H5: год | I5: год | J5: год | K5: год | L5: год | M5: год | N5: год
B6: 2.1 | C6: Реконструкция и строительство объектов инженерной инфраструктуры
B7: 2.1.1 | C7: Наименование проекта | D7: =Смета!C4 -> Работа №1
B8: 2.1.1.1 | C8: Ссылка на соответствующие подразделы обосновывающих материалов
B9: 2.1.1.2 | C9: Краткое описание проекта
B10: 2.1.1.3 | C10: Цель проекта
B11: 2.1.1.4 | C11: Технические характеристики проекта, в том числе:
C12: ввод мощностей, куб. м в сутки
C13: строительство сетей, км
B14: 2.1.1.5 | C14: Необходимые капитальные затраты, млн руб. | D14: =Смета!K4 -> 660 | E14: =E16 -> - | F14: =F16 -> - | G14: 330 | H14: 330 | I14: - | J14: - | K14: - | L14: - | M14: - | N14: -
B15: 2.1.1.6 | C15: Срок реализации проекта | D15: =Смета!M4 -> 2
B16: 2.1.1.7 | C16: Источники инвестиций, в том числе: | D16: =IF(SUM(E16:N16)=D14,D14,"Ошибка!") -> 660 | E16: - | F16: - | G16: 330 | H16: 330 | I16: - | J16: - | K16: - | L16: - | M16: - | N16: -
B17: 2.1.1.8 | C17: Бюджетные источники, в том числе: | D17: =SUM(D18:D20) -> 0 | E17: =SUM(E18:E20) -> 0 | F17: 0 | G17: 0 | H17: 0 | I17: 0 | J17: 0 | K17: 0 | L17: 0 | M17: 0 | N17: 0
C18: Федеральный бюджет | D18: =SUM(E18:N18) -> 0
C19: Региональный бюджет | D19: =SUM(E19:N19) -> 0
C20: Местный бюджет | D20: 0
B21: 2.1.1.9 | C21: Внебюджетные источники | D21: =SUM(E21:N21) -> 0 | E21: =E22 -> 0 | F21: =F22 -> 0 | G21: 0 | H21: 0 | I21: 0 | J21: 0 | K21: 0 | L21: 0 | M21: 0 | N21: 0
C22: Источники возврата внебюджетных инвестиций, в том числе: | D22: =SUM(D23:D24) -> 0 | E22: =SUM(E23:E24) -> 0 | F22: =SUM(F23:F24) -> 0 | G22: 0 | H22: 0 | I22: 0 | J22: 0 | K22: 0 | L22: 0 | M22: 0 | N22: 0
C23: Инвестиционная составляющая в тарифе | D23: =SUM(E23:N23) -> 0
C24: Плата за подключение к системе ресурсоснабжения | D24: =SUM(E24:N24) -> 0
B25: 2.1.1.10 | C25: Срок окупаемости внебюджетных инвестиций, лет
B26: 2.2 | C26: Строительство и реконструкция объектов коммунальной инфраструктуры для перспективной застройки
B27: 2.2.1 | C27: Наименование проекта | D27: =Смета!C24 -> 0
B28: 2.2.1.1 | C28: Ссылка на соответствующие подразделы обосновывающих материалов
B29: 2.2.1.2 | C29: Краткое описание проекта
B30: 2.2.1.3 | C30: Цель проекта
B31: 2.2.1.4 | C31: Технические характеристики проекта, в том числе:
C32: ввод мощностей, куб. м в сутки
C33: строительство сетей, км
B34: 2.2.1.5 | C34: Необходимые капитальные затраты, млн руб. | D34: =Смета!K24 -> 0 | E34: =E36 -> - | F34: =F36 -> - | G34: 330 | H34: 330 | I34: - | J34: - | K34: - | L34: - | M34: - | N34: -
B35: 2.2.1.6 | C35: Срок реализации проекта | D35: =Смета!M24 -> 0
B36: 2.2.1.7 | C36: Источники инвестиций, в том числе: | D36: =IF(SUM(E36:N36)=D34,D34,"Ошибка!") -> Ошибка! | E36: - | F36: - | G36: 330 | H36: 330 | I36: - | J36: - | K36: - | L36: - | M36: - | N36: -
B37: 2.2.1.8 | C37: Бюджетные источники, в том числе: | D37: =SUM(D38:D40) -> 0 | E37: =SUM(E38:E40) -> 0 | F37: =SUM(F38:F40) -> 0 | G37: =SUM(G38:G40) -> 0 | H37: =SUM(H38:H40) -> 0 | I37: =SUM(I38:I40) -> 0 | J37: =SUM(J38:J40) -> 0 | K37: =SUM(K38:K40) -> 0 | L37: =SUM(L38:L40) -> 0 | M37: =SUM(M38:M40) -> 0 | N37: =SUM(N38:N40) -> 0
C38: Федеральный бюджет | D38: =SUM(E38:N38) -> 0
C39: Региональный бюджет | D39: =SUM(E39:N39) -> 0
C40: Местный бюджет | D40: 0
B41: 2.2.1.9 | C41: Внебюджетные источники | D41: =SUM(E41:N41) -> 0 | E41: =E42 -> 0 | F41: =F42 -> 0 | G41: =G42 -> 0 | H41: =H42 -> 0 | I41: =I42 -> 0 | J41: =J42 -> 0 | K41: =K42 -> 0 | L41: =L42 -> 0 | M41: =M42 -> 0 | N41: =N42 -> 0
C42: Источники возврата внебюджетных инвестиций, в том числе: | D42: =SUM(D43:D44) -> 0 | E42: =SUM(E43:E44) -> 0 | F42: =SUM(F43:F44) -> 0 | G42: =SUM(G43:G44) -> 0 | H42: =SUM(H43:H44) -> 0 | I42: =SUM(I43:I44) -> 0 | J42: =SUM(J43:J44) -> 0 | K42: =SUM(K43:K44) -> 0 | L42: =SUM(L43:L44) -> 0 | M42: =SUM(M43:M44) -> 0 | N42: =SUM(N43:N44) -> 0
C43: Инвестиционная составляющая в тарифе | D43: =SUM(E43:N43) -> 0
C44: Плата за подключение к системе ресурсоснабжения | D44: =SUM(E44:N44) -> 0
B45: 2.2.1.10 | C45: Срок окупаемости внебюджетных инвестиций, лет
B46: 2.3 | C46: Строительство и реконструкция объектов коммунальной инфраструктуры для существующей застройки
B47: 2.3.1 | C47: Наименование проекта | D47: =Смета!C44 -> 0
B48: 2.3.1.1 | C48: Ссылка на соответствующие подразделы обосновывающих материалов
B49: 2.3.1.2 | C49: Краткое описание проекта
B50: 2.3.1.3 | C50: Цель проекта
B51: 2.3.1.4 | C51: Технические характеристики проекта, в том числе:
C52: ввод мощностей, куб. м в сутки
C53: строительство сетей, км
B54: 2.3.1.5 | C54: Необходимые капитальные затраты, млн руб. | D54: =Смета!K44 -> 0 | E54: =E56 -> - | F54: =F56 -> - | G54: 330 | H54: 330 | I54: - | J54: - | K54: - | L54: - | M54: - | N54: -
B55: 2.3.1.6 | C55: Срок реализации проекта | D55: =Смета!M44 -> 0
B56: 2.3.1.7 | C56: Источники инвестиций, в том числе: | D56: =IF(SUM(E56:N56)=D54,D54,"Ошибка!") -> Ошибка! | E56: - | F56: - | G56: 330 | H56: 330 | I56: - | J56: - | K56: - | L56: - | M56: - | N56: -
B57: 2.3.1.8 | C57: Бюджетные источники, в том числе: | D57: =SUM(D58:D60) -> 0 | E57: =SUM(E58:E60) -> 0 | F57: =SUM(F58:F60) -> 0 | G57: =SUM(G58:G60) -> 0 | H57: =SUM(H58:H60) -> 0 | I57: =SUM(I58:I60) -> 0 | J57: =SUM(J58:J60) -> 0 | K57: =SUM(K58:K60) -> 0 | L57: =SUM(L58:L60) -> 0 | M57: =SUM(M58:M60) -> 0 | N57: =SUM(N58:N60) -> 0
C58: Федеральный бюджет | D58: =SUM(E58:N58) -> 0
C59: Региональный бюджет | D59: =SUM(E59:N59) -> 0
C60: Местный бюджет | D60: 0
B61: 2.3.1.9 | C61: Внебюджетные источники | D61: =SUM(E61:N61) -> 0 | E61: =E62 -> 0 | F61: =F62 -> 0 | G61: =G62 -> 0 | H61: =H62 -> 0 | I61: =I62 -> 0 | J61: =J62 -> 0 | K61: =K62 -> 0 | L61: =L62 -> 0 | M61: =M62 -> 0 | N61: =N62 -> 0
C62: Источники возврата внебюджетных инвестиций, в том числе: | D62: =SUM(D63:D64) -> 0 | E62: =SUM(E63:E64) -> 0 | F62: =SUM(F63:F64) -> 0 | G62: =SUM(G63:G64) -> 0 | H62: =SUM(H63:H64) -> 0 | I62: =SUM(I63:I64) -> 0 | J62: =SUM(J63:J64) -> 0 | K62: =SUM(K63:K64) -> 0 | L62: =SUM(L63:L64) -> 0 | M62: =SUM(M63:M64) -> 0 | N62: =SUM(N63:N64) -> 0
C63: Инвестиционная составляющая в тарифе | D63: =SUM(E63:N63) -> 0
C64: Плата за подключение к системе ресурсоснабжения | D64: =SUM(E64:N64) -> 0
B65: 2.3.1.10 | C65: Срок окупаемости внебюджетных инвестиций, лет
B66: 2.4 | C66: Модернизация объектов инженерной инфраструктуры
B67: 2.4.1 | C67: Наименование проекта | D67: =Смета!C64 -> 0
B68: 2.4.1.1 | C68: Ссылка на соответствующие подразделы обосновывающих материалов
B69: 2.4.1.2 | C69: Краткое описание проекта
B70: 2.4.1.3 | C70: Цель проекта
B71: 2.4.1.4 | C71: Технические характеристики проекта, в том числе:
C72: ввод мощностей, куб. м в сутки
C73: строительство сетей, км
B74: 2.4.1.5 | C74: Необходимые капитальные затраты, млн руб. | D74: =Смета!K64 -> 0 | E74: =E76 -> - | F74: =F76 -> - | G74: 330 | H74: 330 | I74: - | J74: - | K74: - | L74: - | M74: - | N74: -
B75: 2.4.1.6 | C75: Срок реализации проекта | D75: =Смета!M64 -> 0
B76: 2.4.1.7 | C76: Источники инвестиций, в том числе: | D76: =IF(SUM(E76:N76)=D74,D74,"Ошибка!") -> Ошибка! | E76: - | F76: - | G76: 330 | H76: 330 | I76: - | J76: - | K76: - | L76: - | M76: - | N76: -
B77: 2.4.1.8 | C77: Бюджетные источники, в том числе: | D77: =SUM(D78:D80) -> 0 | E77: =SUM(E78:E80) -> 0 | F77: =SUM(F78:F80) -> 0 | G77: =SUM(G78:G80) -> 0 | H77: =SUM(H78:H80) -> 0 | I77: =SUM(I78:I80) -> 0 | J77: =SUM(J78:J80) -> 0 | K77: =SUM(K78:K80) -> 0 | L77: =SUM(L78:L80) -> 0 | M77: =SUM(M78:M80) -> 0 | N77: =SUM(N78:N80) -> 0
C78: Федеральный бюджет | D78: =SUM(E78:N78) -> 0
C79: Региональный бюджет | D79: =SUM(E79:N79) -> 0
C80: Местный бюджет | D80: 0
B81: 2.4.1.9 | C81: Внебюджетные источники | D81: =SUM(E81:N81) -> 0 | E81: =E82 -> 0 | F81: =F82 -> 0 | G81: =G82 -> 0 | H81: =H82 -> 0 | I81: =I82 -> 0 | J81: =J82 -> 0 | K81: =K82 -> 0 | L81: =L82 -> 0 | M81: =M82 -> 0 | N81: =N82 -> 0
C82: Источники возврата внебюджетных инвестиций, в том числе: | D82: =SUM(D83:D84) -> 0 | E82: =SUM(E83:E84) -> 0 | F82: =SUM(F83:F84) -> 0 | G82: =SUM(G83:G84) -> 0 | H82: =SUM(H83:H84) -> 0 | I82: =SUM(I83:I84) -> 0 | J82: =SUM(J83:J84) -> 0 | K82: =SUM(K83:K84) -> 0 | L82: =SUM(L83:L84) -> 0 | M82: =SUM(M83:M84) -> 0 | N82: =SUM(N83:N84) -> 0
C83: Инвестиционная составляющая в тарифе | D83: =SUM(E83:N83) -> 0
C84: Плата за подключение к системе ресурсоснабжения | D84: =SUM(E84:N84) -> 0
B85: 2.4.1.10 | C85: Срок окупаемости внебюджетных инвестиций, лет
B86: 2.5 | C86: ВСЕГО ПО СИСТЕМЕ
C87: Источники инвестиций, в том числе:
B88: 2.5.1 | C88: Бюджетные источники, в том числе:
C89: Федеральный бюджет
C90: Региональный бюджет
C91: Местный бюджет
B92: 2.5.2 | C92: Внебюджетные источники
C93: Источники возврата внебюджетных инвестиций, в том числе:
C94: Инвестиционная составляющая в тарифе
C95: Плата за подключение к системе ресурсоснабжения

Sheet 3. Водоотведение
B1: =CONCATENATE("ПРИЛОЖЕНИЕ"," ",Приложения!B5,". ",Приложения!C5) -> ПРИЛОЖЕНИЕ 3. ПРОГРАММА ИНВЕСТИЦИОННЫХ ПРОЕКТОВ В ВОДООТВЕДЕНИИ
B3: № пп | C3: Инвестиционные проекты | D3: Финансовые затраты на реализацию (млн руб.)
D4: Всего | E4: =Приложения!D5 -> 2022 | F4: =E4+1 -> 2023 | G4: =F4+1 -> 2024 | H4: 2025 | I4: 2026 | J4: 2027 | K4: 2028 | L4: 2029 | M4: 2030 | N4: 2031
E5: год | F5: год | G5: год | H5: год | I5: год | J5: год | K5: год | L5: год | M5: год | N5: год
B6: 3.1 | C6: Реконструкция и строительство объектов водоотведения
B7: 3.1.1 | C7: Наименование проекта | D7: =Смета!C4 -> Работа №1
B8: 3.1.1.1 | C8: Ссылка на соответствующие подразделы обосновывающих материалов
B9: 3.1.1.2 | C9: Краткое описание проекта
B10: 3.1.1.3 | C10: Цель проекта
B11: 3.1.1.4 | C11: Технические характеристики проекта, в том числе:
C12: ввод мощностей, куб. м в сутки
C13: строительство сетей, км
B14: 3.1.1.5 | C14: Необходимые капитальные затраты, млн руб. | D14: =Смета!K4 -> 660 | E14: =E16 -> - | F14: =F16 -> - | G14: 330 | H14: 330 | I14: - | J14: - | K14: - | L14: - | M14: - | N14: -
B15: 3.1.1.6 | C15: Срок реализации проекта | D15: =Смета!M4 -> 2
B16: 3.1.1.7 | C16: Источники инвестиций, в том числе: | D16: =IF(SUM(E16:N16)=D14,D14,"Ошибка!") -> 660 | E16: - | F16: - | G16: 330 | H16: 330 | I16: - | J16: - | K16: - | L16: - | M16: - | N16: -
B17: 3.1.1.8 | C17: Бюджетные источники, в том числе: | D17: =SUM(D18:D20) -> 0 | E17: =SUM(E18:E20) -> 0 | F17: 0 | G17: 0 | H17: 0 | I17: 0 | J17: 0 | K17: 0 | L17: 0 | M17: 0 | N17: 0
C18: Федеральный бюджет | D18: =SUM(E18:N18) -> 0
C19: Региональный бюджет | D19: =SUM(E19:N19) -> 0
C20: Местный бюджет | D20: 0
B21: 3.1.1.9 | C21: Внебюджетные источники | D21: =SUM(E21:N21) -> 0 | E21: =E22 -> 0 | F21: =F22 -> 0 | G21: 0 | H21: 0 | I21: 0 | J21: 0 | K21: 0 | L21: 0 | M21: 0 | N21: 0
C22: Источники возврата внебюджетных инвестиций, в том числе: | D22: =SUM(D23:D24) -> 0 | E22: =SUM(E23:E24) -> 0 | F22: =SUM(F23:F24) -> 0 | G22: 0 | H22: 0 | I22: 0 | J22: 0 | K22: 0 | L22: 0 | M22: 0 | N22: 0
C23: Инвестиционная составляющая в тарифе | D23: =SUM(E23:N23) -> 0
C24: Плата за подключение к системе ресурсоснабжения | D24: =SUM(E24:N24) -> 0
B25: 3.1.1.10 | C25: Срок окупаемости внебюджетных инвестиций, лет
B26: 3.2 | C26: Строительство и реконструкция объектов коммунальной инфраструктуры для перспективной застройки
B27: 3.2.1 | C27: Наименование проекта | D27: =Смета!C24 -> 0
B28: 3.2.1.1 | C28: Ссылка на соответствующие подразделы обосновывающих материалов
B29: 3.2.1.2 | C29: Краткое описание проекта
B30: 3.2.1.3 | C30: Цель проекта
B31: 3.2.1.4 | C31: Технические характеристики проекта, в том числе:
C32: ввод мощностей, куб. м в сутки
C33: строительство сетей, км
B34: 3.2.1.5 | C34: Необходимые капитальные затраты, млн руб. | D34: =Смета!K24 -> 0 | E34: =E36 -> - | F34: =F36 -> - | G34: 330 | H34: 330 | I34: - | J34: - | K34: - | L34: - | M34: - | N34: -
B35: 3.2.1.6 | C35: Срок реализации проекта | D35: =Смета!M24 -> 0
B36: 3.2.1.7 | C36: Источники инвестиций, в том числе: | D36: =IF(SUM(E36:N36)=D34,D34,"Ошибка!") -> Ошибка! | E36: - | F36: - | G36: 330 | H36: 330 | I36: - | J36: - | K36: - | L36: - | M36: - | N36: -
B37: 3.2.1.8 | C37: Бюджетные источники, в том числе: | D37: =SUM(D38:D40) -> 0 | E37: =SUM(E38:E40) -> 0 | F37: =SUM(F38:F40) -> 0 | G37: =SUM(G38:G40) -> 0 | H37: =SUM(H38:H40) -> 0 | I37: =SUM(I38:I40) -> 0 | J37: =SUM(J38:J40) -> 0 | K37: =SUM(K38:K40) -> 0 | L37: =SUM(L38:L40) -> 0 | M37: =SUM(M38:M40) -> 0 | N37: =SUM(N38:N40) -> 0
C38: Федеральный бюджет | D38: =SUM(E38:N38) -> 0
C39: Региональный бюджет | D39: =SUM(E39:N39) -> 0
C40: Местный бюджет | D40: 0
B41: 3.2.1.9 | C41: Внебюджетные источники | D41: =SUM(E41:N41) -> 0 | E41: =E42 -> 0 | F41: =F42 -> 0 | G41: =G42 -> 0 | H41: =H42 -> 0 | I41: =I42 -> 0 | J41: =J42 -> 0 | K41: =K42 -> 0 | L41: =L42 -> 0 | M41: =M42 -> 0 | N41: =N42 -> 0
C42: Источники возврата внебюджетных инвестиций, в том числе: | D42: =SUM(D43:D44) -> 0 | E42: =SUM(E43:E44) -> 0 | F42: =SUM(F43:F44) -> 0 | G42: =SUM(G43:G44) -> 0 | H42: =SUM(H43:H44) -> 0 | I42: =SUM(I43:I44) -> 0 | J42: =SUM(J43:J44) -> 0 | K42: =SUM(K43:K44) -> 0 | L42: =SUM(L43:L44) -> 0 | M42: =SUM(M43:M44) -> 0 | N42: =SUM(N43:N44) -> 0
C43: Инвестиционная составляющая в тарифе | D43: =SUM(E43:N43) -> 0
C44: Плата за подключение к системе ресурсоснабжения | D44: =SUM(E44:N44) -> 0
B45: 3.2.1.10 | C45: Срок окупаемости внебюджетных инвестиций, лет
B46: 3.3 | C46: Строительство и реконструкция объектов коммунальной инфраструктуры для существующей застройки
B47: 3.3.1 | C47: Наименование проекта | D47: =Смета!C44 -> 0
B48: 3.3.1.1 | C48: Ссылка на соответствующие подразделы обосновывающих материалов
B49: 3.3.1.2 | C49: Краткое описание проекта
B50: 3.3.1.3 | C50: Цель проекта
B51: 3.3.1.4 | C51: Технические характеристики проекта, в том числе:
C52: ввод мощностей, куб. м в сутки
C53: строительство сетей, км
B54: 3.3.1.5 | C54: Необходимые капитальные затраты, млн руб. | D54: =Смета!K44 -> 0 | E54: =E56 -> - | F54: =F56 -> - | G54: 330 | H54: 330 | I54: - | J54: - | K54: - | L54: - | M54: - | N54: -
B55: 3.3.1.6 | C55: Срок реализации проекта | D55: =Смета!M44 -> 0
B56: 3.3.1.7 | C56: Источники инвестиций, в том числе: | D56: =IF(SUM(E56:N56)=D54,D54,"Ошибка!") -> Ошибка! | E56: - | F56: - | G56: 330 | H56: 330 | I56: - | J56: - | K56: - | L56: - | M56: - | N56: -
B57: 3.3.1.8 | C57: Бюджетные источники, в том числе: | D57: =SUM(D58:D60) -> 0 | E57: =SUM(E58:E60) -> 0 | F57: =SUM(F58:F60) -> 0 | G57: =SUM(G58:G60) -> 0 | H57: =SUM(H58:H60) -> 0 | I57: =SUM(I58:I60) -> 0 | J57: =SUM(J58:J60) -> 0 | K57: =SUM(K58:K60) -> 0 | L57: =SUM(L58:L60) -> 0 | M57: =SUM(M58:M60) -> 0 | N57: =SUM(N58:N60) -> 0
C58: Федеральный бюджет | D58: =SUM(E58:N58) -> 0
C59: Региональный бюджет | D59: =SUM(E59:N59) -> 0
C60: Местный бюджет | D60: 0
B61: 3.3.1.9 | C61: Внебюджетные источники | D61: =SUM(E61:N61) -> 0 | E61: =E62 -> 0 | F61: =F62 -> 0 | G61: =G62 -> 0 | H61: =H62 -> 0 | I61: =I62 -> 0 | J61: =J62 -> 0 | K61: =K62 -> 0 | L61: =L62 -> 0 | M61: =M62 -> 0 | N61: =N62 -> 0
C62: Источники возврата внебюджетных инвестиций, в том числе: | D62: =SUM(D63:D64) -> 0 | E62: =SUM(E63:E64) -> 0 | F62: =SUM(F63:F64) -> 0 | G62: =SUM(G63:G64) -> 0 | H62: =SUM(H63:H64) -> 0 | I62: =SUM(I63:I64) -> 0 | J62: =SUM(J63:J64) -> 0 | K62: =SUM(K63:K64) -> 0 | L62: =SUM(L63:L64) -> 0 | M62: =SUM(M63:M64) -> 0 | N62: =SUM(N63:N64) -> 0
C63: Инвестиционная составляющая в тарифе | D63: =SUM(E63:N63) -> 0
C64: Плата за подключение к системе ресурсоснабжения | D64: =SUM(E64:N64) -> 0
B65: 3.3.1.10 | C65: Срок окупаемости внебюджетных инвестиций, лет
B66: 3.4 | C66: Модернизация объектов инженерной инфраструктуры
B67: 3.4.1 | C67: Наименование проекта | D67: =Смета!C64 -> 0
B68: 3.4.1.1 | C68: Ссылка на соответствующие подразделы обосновывающих материалов
B69: 3.4.1.2 | C69: Краткое описание проекта
B70: 3.4.1.3 | C70: Цель проекта
B71: 3.4.1.4 | C71: Технические характеристики проекта, в том числе:
C72: ввод мощностей, куб. м в сутки
C73: строительство сетей, км
B74: 3.4.1.5 | C74: Необходимые капитальные затраты, млн руб. | D74: =Смета!K64 -> 0 | E74: =E76 -> - | F74: =F76 -> - | G74: 330 | H74: 330 | I74: - | J74: - | K74: - | L74: - | M74: - | N74: -
B75: 3.4.1.6 | C75: Срок реализации проекта | D75: =Смета!M64 -> 0
B76: 3.4.1.7 | C76: Источники инвестиций, в том числе: | D76: =IF(SUM(E76:N76)=D74,D74,"Ошибка!") -> Ошибка! | E76: - | F76: - | G76: 330 | H76: 330 | I76: - | J76: - | K76: - | L76: - | M76: - | N76: -
B77: 3.4.1.8 | C77: Бюджетные источники, в том числе: | D77: =SUM(D78:D80) -> 0 | E77: =SUM(E78:E80) -> 0 | F77: =SUM(F78:F80) -> 0 | G77: =SUM(G78:G80) -> 0 | H77: =SUM(H78:H80) -> 0 | I77: =SUM(I78:I80) -> 0 | J77: =SUM(J78:J80) -> 0 | K77: =SUM(K78:K80) -> 0 | L77: =SUM(L78:L80) -> 0 | M77: =SUM(M78:M80) -> 0 | N77: =SUM(N78:N80) -> 0
C78: Федеральный бюджет | D78: =SUM(E78:N78) -> 0
C79: Региональный бюджет | D79: =SUM(E79:N79) -> 0
C80: Местный бюджет | D80: 0
B81: 3.4.1.9 | C81: Внебюджетные источники | D81: =SUM(E81:N81) -> 0 | E81: =E82 -> 0 | F81: =F82 -> 0 | G81: =G82 -> 0 | H81: =H82 -> 0 | I81: =I82 -> 0 | J81: =J82 -> 0 | K81: =K82 -> 0 | L81: =L82 -> 0 | M81: =M82 -> 0 | N81: =N82 -> 0
C82: Источники возврата внебюджетных инвестиций, в том числе: | D82: =SUM(D83:D84) -> 0 | E82: =SUM(E83:E84) -> 0 | F82: =SUM(F83:F84) -> 0 | G82: =SUM(G83:G84) -> 0 | H82: =SUM(H83:H84) -> 0 | I82: =SUM(I83:I84) -> 0 | J82: =SUM(J83:J84) -> 0 | K82: =SUM(K83:K84) -> 0 | L82: =SUM(L83:L84) -> 0 | M82: =SUM(M83:M84) -> 0 | N82: =SUM(N83:N84) -> 0
C83: Инвестиционная составляющая в тарифе | D83: =SUM(E83:N83) -> 0
C84: Плата за подключение к системе ресурсоснабжения | D84: =SUM(E84:N84) -> 0
B85: 3.4.1.10 | C85: Срок окупаемости внебюджетных инвестиций, лет
B86: 3.5 | C86: ВСЕГО ПО СИСТЕМЕ
C87: Источники инвестиций, в том числе:
B88: 3.5.1 | C88: Бюджетные источники, в том числе:
C89: Федеральный бюджет
C90: Региональный бюджет
C91: Местный бюджет
B92: 3.5.2 | C92: Внебюджетные источники
C93: Источники возврата внебюджетных инвестиций, в том числе:
C94: Инвестиционная составляющая в тарифе
C95: Плата за подключение к системе ресурсоснабжения

Sheet 4. Электроснабжение
B1: =CONCATENATE("ПРИЛОЖЕНИЕ"," ",Приложения!B6,". ",Приложения!C6) -> ПРИЛОЖЕНИЕ 4. ПРОГРАММА ИНВЕСТИЦИОННЫХ ПРОЕКТОВ В ЭЛЕКТРОСНАБЖЕНИИ
B3: № пп | C3: Инвестиционные проекты | D3: Финансовые затраты на реализацию (млн руб.)
D4: Всего | E4: =Приложения!D6 -> 2022 | F4: =E4+1 -> 2023 | G4: =F4+1 -> 2024 | H4: 2025 | I4: 2026 | J4: 2027 | K4: 2028 | L4: 2029 | M4: 2030 | N4: 2031
E5: год | F5: год | G5: год | H5: год | I5: год | J5: год | K5: год | L5: год | M5: год | N5: год
B6: 4.1 | C6: Реконструкция объектов и сетей электроснабжения
B7: 4.1.1 | C7: Наименование проекта | D7: =Смета!C4 -> Работа №1
B8: 4.1.1.1 | C8: Ссылка на соответствующие подразделы обосновывающих материалов
B9: 4.1.1.2 | C9: Краткое описание проекта
B10: 4.1.1.3 | C10: Цель проекта
B11: 4.1.1.4 | C11: Технические характеристики проекта, в том числе:
C12: ввод мощностей, МВт
C13: строительство сетей, км
B14: 4.1.1.5 | C14: Необходимые капитальные затраты, млн руб. | D14: =Смета!K4 -> 660 | E14: =E16 -> - | F14: =F16 -> - | G14: 330 | H14: 330 | I14: - | J14: - | K14: - | L14: - | M14: - | N14: -
B15: 4.1.1.6 | C15: Срок реализации проекта | D15: =Смета!M4 -> 2
B16: 4.1.1.7 | C16: Источники инвестиций, в том числе: | D16: =IF(SUM(E16:N16)=D14,D14,"Ошибка!") -> 660 | E16: - | F16: - | G16: 330 | H16: 330 | I16: - | J16: - | K16: - | L16: - | M16: - | N16: -
B17: 4.1.1.8 | C17: Бюджетные источники, в том числе: | D17: =SUM(D18:D20) -> 0 | E17: =SUM(E18:E20) -> 0 | F17: 0 | G17: 0 | H17: 0 | I17: 0 | J17: 0 | K17: 0 | L17: 0 | M17: 0 | N17: 0
C18: Федеральный бюджет | D18: =SUM(E18:N18) -> 0
C19: Региональный бюджет | D19: =SUM(E19:N19) -> 0
C20: Местный бюджет | D20: 0
B21: 4.1.1.9 | C21: Внебюджетные источники | D21: =SUM(E21:N21) -> 0 | E21: =E22 -> 0 | F21: =F22 -> 0 | G21: 0 | H21: 0 | I21: 0 | J21: 0 | K21: 0 | L21: 0 | M21: 0 | N21: 0
C22: Источники возврата внебюджетных инвестиций, в том числе: | D22: =SUM(D23:D24) -> 0 | E22: =SUM(E23:E24) -> 0 | F22: =SUM(F23:F24) -> 0 | G22: 0 | H22: 0 | I22: 0 | J22: 0 | K22: 0 | L22: 0 | M22: 0 | N22: 0
C23: Инвестиционная составляющая в тарифе | D23: =SUM(E23:N23) -> 0
C24: Плата за подключение к системе ресурсоснабжения | D24: =SUM(E24:N24) -> 0
B25: 4.1.1.10 | C25: Срок окупаемости внебюджетных инвестиций, лет
B26: 4.2 | C26: Строительство объектов и сетей электроснабжения
B27: 4.2.1 | C27: Наименование проекта | D27: =Смета!C24 -> 0
B28: 4.2.1.1 | C28: Ссылка на соответствующие подразделы обосновывающих материалов
B29: 4.2.1.2 | C29: Краткое описание проекта
B30: 4.2.1.3 | C30: Цель проекта
B31: 4.2.1.4 | C31: Технические характеристики проекта, в том числе:
C32: ввод мощностей, МВт
C33: строительство сетей, км
B34: 4.2.1.5 | C34: Необходимые капитальные затраты, млн руб. | D34: =Смета!K24 -> 0 | E34: =E36 -> - | F34: =F36 -> - | G34: 330 | H34: 330 | I34: - | J34: - | K34: - | L34: - | M34: - | N34: -
B35: 4.2.1.6 | C35: Срок реализации проекта | D35: =Смета!M24 -> 0
B36: 4.2.1.7 | C36: Источники инвестиций, в том числе: | D36: =IF(SUM(E36:N36)=D34,D34,"Ошибка!") -> Ошибка! | E36: - | F36: - | G36: 330 | H36: 330 | I36: - | J36: - | K36: - | L36: - | M36: - | N36: -
B37: 4.2.1.8 | C37: Бюджетные источники, в том числе: | D37: =SUM(D38:D40) -> 0 | E37: =SUM(E38:E40) -> 0 | F37: =SUM(F38:F40) -> 0 | G37: =SUM(G38:G40) -> 0 | H37: =SUM(H38:H40) -> 0 | I37: =SUM(I38:I40) -> 0 | J37: =SUM(J38:J40) -> 0 | K37: =SUM(K38:K40) -> 0 | L37: =SUM(L38:L40) -> 0 | M37: =SUM(M38:M40) -> 0 | N37: =SUM(N38:N40) -> 0
C38: Федеральный бюджет | D38: =SUM(E38:N38) -> 0
C39: Региональный бюджет | D39: =SUM(E39:N39) -> 0
C40: Местный бюджет | D40: 0
B41: 4.2.1.9 | C41: Внебюджетные источники | D41: =SUM(E41:N41) -> 0 | E41: =E42 -> 0 | F41: =F42 -> 0 | G41: =G42 -> 0 | H41: =H42 -> 0 | I41: =I42 -> 0 | J41: =J42 -> 0 | K41: =K42 -> 0 | L41: =L42 -> 0 | M41: =M42 -> 0 | N41: =N42 -> 0
C42: Источники возврата внебюджетных инвестиций, в том числе: | D42: =SUM(D43:D44) -> 0 | E42: =SUM(E43:E44) -> 0 | F42: =SUM(F43:F44) -> 0 | G42: =SUM(G43:G44) -> 0 | H42: =SUM(H43:H44) -> 0 | I42: =SUM(I43:I44) -> 0 | J42: =SUM(J43:J44) -> 0 | K42: =SUM(K43:K44) -> 0 | L42: =SUM(L43:L44) -> 0 | M42: =SUM(M43:M44) -> 0 | N42: =SUM(N43:N44) -> 0
C43: Инвестиционная составляющая в тарифе | D43: =SUM(E43:N43) -> 0
C44: Плата за подключение к системе ресурсоснабжения | D44: =SUM(E44:N44) -> 0
B45: 4.2.1.10 | C45: Срок окупаемости внебюджетных инвестиций, лет
B46: 4.3 | C46: Строительство объектов и сетей электроснабжения для перспективной застройки
B47: 4.3.1 | C47: Наименование проекта | D47: =Смета!C44 -> 0
B48: 4.3.1.1 | C48: Ссылка на соответствующие подразделы обосновывающих материалов
B49: 4.3.1.2 | C49: Краткое описание проекта
B50: 4.3.1.3 | C50: Цель проекта
B51: 4.3.1.4 | C51: Технические характеристики проекта, в том числе:
C52: ввод мощностей, МВт
C53: строительство сетей, км
B54: 4.3.1.5 | C54: Необходимые капитальные затраты, млн руб. | D54: =Смета!K44 -> 0 | E54: =E56 -> - | F54: =F56 -> - | G54: 330 | H54: 330 | I54: - | J54: - | K54: - | L54: - | M54: - | N54: -
B55: 4.3.1.6 | C55: Срок реализации проекта | D55: =Смета!M44 -> 0
B56: 4.3.1.7 | C56: Источники инвестиций, в том числе: | D56: =IF(SUM(E56:N56)=D54,D54,"Ошибка!") -> Ошибка! | E56: - | F56: - | G56: 330 | H56: 330 | I56: - | J56: - | K56: - | L56: - | M56: - | N56: -
B57: 4.3.1.8 | C57: Бюджетные источники, в том числе: | D57: =SUM(D58:D60) -> 0 | E57: =SUM(E58:E60) -> 0 | F57: =SUM(F58:F60) -> 0 | G57: =SUM(G58:G60) -> 0 | H57: =SUM(H58:H60) -> 0 | I57: =SUM(I58:I60) -> 0 | J57: =SUM(J58:J60) -> 0 | K57: =SUM(K58:K60) -> 0 | L57: =SUM(L58:L60) -> 0 | M57: =SUM(M58:M60) -> 0 | N57: =SUM(N58:N60) -> 0
C58: Федеральный бюджет | D58: =SUM(E58:N58) -> 0
C59: Региональный бюджет | D59: =SUM(E59:N59) -> 0
C60: Местный бюджет | D60: 0
B61: 4.3.1.9 | C61: Внебюджетные источники | D61: =SUM(E61:N61) -> 0 | E61: =E62 -> 0 | F61: =F62 -> 0 | G61: =G62 -> 0 | H61: =H62 -> 0 | I61: =I62 -> 0 | J61: =J62 -> 0 | K61: =K62 -> 0 | L61: =L62 -> 0 | M61: =M62 -> 0 | N61: =N62 -> 0
C62: Источники возврата внебюджетных инвестиций, в том числе: | D62: =SUM(D63:D64) -> 0 | E62: =SUM(E63:E64) -> 0 | F62: =SUM(F63:F64) -> 0 | G62: =SUM(G63:G64) -> 0 | H62: =SUM(H63:H64) -> 0 | I62: =SUM(I63:I64) -> 0 | J62: =SUM(J63:J64) -> 0 | K62: =SUM(K63:K64) -> 0 | L62: =SUM(L63:L64) -> 0 | M62: =SUM(M63:M64) -> 0 | N62: =SUM(N63:N64) -> 0
C63: Инвестиционная составляющая в тарифе | D63: =SUM(E63:N63) -> 0
C64: Плата за подключение к системе ресурсоснабжения | D64: =SUM(E64:N64) -> 0
B65: 4.3.1.10 | C65: Срок окупаемости внебюджетных инвестиций, лет
B66: 4.4 | C66: ВСЕГО ПО СИСТЕМЕ
C67: Источники инвестиций, в том числе:
B68: 4.4.1 | C68: Бюджетные источники, в том числе:
C69: Федеральный бюджет
C70: Региональный бюджет
C71: Местный бюджет
B72: 4.4.2 | C72: Внебюджетные источники
C73: Источники возврата внебюджетных инвестиций, в том числе:
C74: Инвестиционная составляющая в тарифе
C75: Плата за подключение к системе ресурсоснабжения

Sheet 5. Газоснабжение
B1: =CONCATENATE("ПРИЛОЖЕНИЕ"," ",Приложения!B7,". ",Приложения!C7) -> ПРИЛОЖЕНИЕ 5. ПРОГРАММА ИНВЕСТИЦИОННЫХ ПРОЕКТОВ В ГАЗОСНАБЖЕНИИ
B3: № пп | C3: Инвестиционные проекты | D3: Финансовые затраты на реализацию (млн руб.)
D4: Всего | E4: =Приложения!D7 -> 2022 | F4: =E4+1 -> 2023 | G4: =F4+1 -> 2024 | H4: 2025 | I4: 2026 | J4: 2027 | K4: 2028 | L4: 2029 | M4: 2030 | N4: 2031
E5: год | F5: год | G5: год | H5: год | I5: год | J5: год | K5: год | L5: год | M5: год | N5: год
B6: 5.1 | C6: Реконструкция объектов и сетей газоснабжения
B7: 5.1.1 | C7: Наименование проекта | D7: =Смета!C4 -> Работа №1
B8: 5.1.1.1 | C8: Ссылка на соответствующие подразделы обосновывающих материалов
B9: 5.1.1.2 | C9: Краткое описание проекта
B10: 5.1.1.3 | C10: Цель проекта
B11: 5.1.1.4 | C11: Технические характеристики проекта, в том числе:
C12: ввод мощностей, куб. м в час
C13: строительство сетей, км
B14: 5.1.1.5 | C14: Необходимые капитальные затраты, млн руб. | D14: =Смета!K4 -> 660 | E14: =E16 -> - | F14: =F16 -> - | G14: 330 | H14: 330 | I14: - | J14: - | K14: - | L14: - | M14: - | N14: -
B15: 5.1.1.6 | C15: Срок реализации проекта | D15: =Смета!M4 -> 2
B16: 5.1.1.7 | C16: Источники инвестиций, в том числе: | D16: =IF(SUM(E16:N16)=D14,D14,"Ошибка!") -> 660 | E16: - | F16: - | G16: 330 | H16: 330 | I16: - | J16: - | K16: - | L16: - | M16: - | N16: -
B17: 5.1.1.8 | C17: Бюджетные источники, в том числе: | D17: =SUM(D18:D20) -> 0 | E17: =SUM(E18:E20) -> 0 | F17: 0 | G17: 0 | H17: 0 | I17: 0 | J17: 0 | K17: 0 | L17: 0 | M17: 0 | N17: 0
C18: Федеральный бюджет | D18: =SUM(E18:N18) -> 0
C19: Региональный бюджет | D19: =SUM(E19:N19) -> 0
C20: Местный бюджет | D20: 0
B21: 5.1.1.9 | C21: Внебюджетные источники | D21: =SUM(E21:N21) -> 0 | E21: =E22 -> 0 | F21: =F22 -> 0 | G21: 0 | H21: 0 | I21: 0 | J21: 0 | K21: 0 | L21: 0 | M21: 0 | N21: 0
C22: Источники возврата внебюджетных инвестиций, в том числе: | D22: =SUM(D23:D24) -> 0 | E22: =SUM(E23:E24) -> 0 | F22: =SUM(F23:F24) -> 0 | G22: 0 | H22: 0 | I22: 0 | J22: 0 | K22: 0 | L22: 0 | M22: 0 | N22: 0
C23: Инвестиционная составляющая в тарифе | D23: =SUM(E23:N23) -> 0
C24: Плата за подключение к системе ресурсоснабжения | D24: =SUM(E24:N24) -> 0
B25: 5.1.1.10 | C25: Срок окупаемости внебюджетных инвестиций, лет
B26: 5.2 | C26: Строительство объектов и сетей газоснабжения
B27: 5.2.1 | C27: Наименование проекта | D27: =Смета!C24 -> 0
B28: 5.2.1.1 | C28: Ссылка на соответствующие подразделы обосновывающих материалов
B29: 5.2.1.2 | C29: Краткое описание проекта
B30: 5.2.1.3 | C30: Цель проекта
B31: 5.2.1.4 | C31: Технические характеристики проекта, в том числе:
C32: ввод мощностей, куб. м в час
C33: строительство сетей, км
B34: 5.2.1.5 | C34: Необходимые капитальные затраты, млн руб. | D34: =Смета!K24 -> 0 | E34: =E36 -> - | F34: =F36 -> - | G34: 330 | H34: 330 | I34: - | J34: - | K34: - | L34: - | M34: - | N34: -
B35: 5.2.1.6 | C35: Срок реализации проекта | D35: =Смета!M24 -> 0
B36: 5.2.1.7 | C36: Источники инвестиций, в том числе: | D36: =IF(SUM(E36:N36)=D34,D34,"Ошибка!") -> Ошибка! | E36: - | F36: - | G36: 330 | H36: 330 | I36: - | J36: - | K36: - | L36: - | M36: - | N36: -
B37: 5.2.1.8 | C37: Бюджетные источники, в том числе: | D37: =SUM(D38:D40) -> 0 | E37: =SUM(E38:E40) -> 0 | F37: =SUM(F38:F40) -> 0 | G37: =SUM(G38:G40) -> 0 | H37: =SUM(H38:H40) -> 0 | I37: =SUM(I38:I40) -> 0 | J37: =SUM(J38:J40) -> 0 | K37: =SUM(K38:K40) -> 0 | L37: =SUM(L38:L40) -> 0 | M37: =SUM(M38:M40) -> 0 | N37: =SUM(N38:N40) -> 0
C38: Федеральный бюджет | D38: =SUM(E38:N38) -> 0
C39: Региональный бюджет | D39: =SUM(E39:N39) -> 0
C40: Местный бюджет | D40: 0
B41: 5.2.1.9 | C41: Внебюджетные источники | D41: =SUM(E41:N41) -> 0 | E41: =E42 -> 0 | F41: =F42 -> 0 | G41: =G42 -> 0 | H41: =H42 -> 0 | I41: =I42 -> 0 | J41: =J42 -> 0 | K41: =K42 -> 0 | L41: =L42 -> 0 | M41: =M42 -> 0 | N41: =N42 -> 0
C42: Источники возврата внебюджетных инвестиций, в том числе: | D42: =SUM(D43:D44) -> 0 | E42: =SUM(E43:E44) -> 0 | F42: =SUM(F43:F44) -> 0 | G42: =SUM(G43:G44) -> 0 | H42: =SUM(H43:H44) -> 0 | I42: =SUM(I43:I44) -> 0 | J42: =SUM(J43:J44) -> 0 | K42: =SUM(K43:K44) -> 0 | L42: =SUM(L43:L44) -> 0 | M42: =SUM(M43:M44) -> 0 | N42: =SUM(N43:N44) -> 0
C43: Инвестиционная составляющая в тарифе | D43: =SUM(E43:N43) -> 0
C44: Плата за подключение к системе ресурсоснабжения | D44: =SUM(E44:N44) -> 0
B45: 5.2.1.10 | C45: Срок окупаемости внебюджетных инвестиций, лет
B46: 5.3 | C46: ВСЕГО ПО СИСТЕМЕ
C47: Источники инвестиций, в том числе:
B48: 5.3.1 | C48: Бюджетные источники, в том числе:
C49: Федеральный бюджет
C50: Региональный бюджет
C51: Местный бюджет
B52: 5.3.2 | C52: Внебюджетные источники
C53: Источники возврата внебюджетных инвестиций, в том числе:
C54: Инвестиционная составляющая в тарифе
C55: Плата за подключение к системе ресурсоснабжения

Sheet data
B2: Единицы измерений | E2: Освоение инвестиций
C3: км | E3: 1 | F3: 1
C4: куб. м в сутки | E4: 2 | F4: 0.5 | G4: 0.5
C5: куб. м в час | E5: 3 | F5: 0.3 | G5: 0.3 | H5: 0.4
C6: МВт | E6: 4 | F6: 0.2 | G6: 0.2 | H6: 0.3 | I6: 0.3
E7: 5 | F7: 0.2 | G7: 0.2 | H7: 0.2 | I7: 0.2 | J7: 0.2
B8: НДС
C9: 1
C10: 1.2
B12: Теплоснабжение | C12: 1
B13: 1.1 | C13: Реконструкция объектов и сетей теплоснабжения
B14: 1.2 | C14: Строительство объектов и сетей теплоснабжения
B15: 1.3 | C15: Строительство объектов и сетей теплоснабжения для перспективной застройки
B17: Водоснабжение | C17: 2
B18: 2.1 | C18: Реконструкция и строительство объектов инженерной инфраструктуры
B19: 2.2 | C19: Строительство и реконструкция объектов коммунальной инфраструктуры для перспективной застройки
B20: 2.3 | C20: Строительство и реконструкция объектов коммунальной инфраструктуры для существующей застройки
B21: 2.4 | C21: Модернизация объектов инженерной инфраструктуры
B23: Водоотведение | C23: 3
B24: 3.1 | C24: Реконструкция и строительство объектов водоотведения
B25: 3.2 | C25: Строительство и реконструкция объектов коммунальной инфраструктуры для перспективной застройки
B26: 3.3 | C26: Строительство и реконструкция объектов коммунальной инфраструктуры для существующей застройки
B27: 3.4 | C27: Модернизация объектов инженерной инфраструктуры
B29: Электроснабжение | C29: 4
B30: 4.1 | C30: Реконструкция объектов и сетей электроснабжения
B31: 4.2 | C31: Строительство объектов и сетей электроснабжения
B32: 4.3 | C32: Строительство объектов и сетей электроснабжения для перспективной застройки
B34: Газоснабжение | C34: 5
B35: 5.1 | C35: Реконструкция объектов и сетей газоснабжения
B36: 5.2 | C36: Строительство объектов и сетей газоснабжения
